Workbook

Sheet 現金出納帳
K1: １、期首日を入力してください
K2: 期首日を入力 | L2: 2020-04-01 | N2: =YEAR(L2) -> 2020 | O2: =MONTH(L2) -> 4 | P2: =DAY(L2) -> 1 | Q2: =TODAY() -> 2022-06-30 | R2: =MONTH(Q2) -> 6 | S2: =DAY(Q2) -> 30 | U2: =L2 -> 2020-04-01 | V2: =MONTH(U2) -> 4 | W2: =YEAR(U2) -> 2020 | Z2: 年 | AA2: 月 | AB2: 日 | AD2: 日付 | AE2: 日付
K3: 期末日 | L3: =EDATE(L2,12)-1 -> 2021-03-31 | N3: =YEAR(L3) -> 2021 | O3: =MONTH(L3) -> 3 | P3: =DAY(L3) -> 31 | U3: =EDATE(U2,1) -> 2020-05-01 | V3: =MONTH(U3) -> 5 | W3: =YEAR(U3) -> 2020 | Y3: 開始 | Z3: 2016 | AA3: 4 | AB3: 1 | AC3: =DATE(Z3,AA3,AB3) -> 2016-04-01 | AD3: =">="&AC3 -> >=42461 | AE3: ="<="&AC4 -> <=42825
U4: =EDATE(U3,1) -> 2020-06-01 | V4: 6 | W4: 2020 | Y4: 終了 | Z4: 2017 | AA4: 3 | AB4: 31 | AC4: =DATE(Z4,AA4,AB4) -> 2017-03-31
K5: ２、弥生会計の対象科目名を入力してください | U5: 2020-07-01 | V5: 7 | W5: 2020
I6: 提供：小林敬幸税理士事務所 | K6: 対象科目 | L6: 現金 | U6: 2020-08-01 | V6: 8 | W6: 2020
K7: 対象補助科目 | N7: =IF(L7="","",L7) ->  | U7: 2020-09-01 | V7: 9 | W7: 2020
A8: 月 | B8: 日 | C8: 取引先 | D8: 取引内容 | E8: 勘定科目 | H8: 入金額 | I8: 出金額 | J8: 差引残高 | U8: 2020-10-01 | V8: 10 | W8: 2020
F9: 科目名 | G9: 補助科目 | U9: 2020-11-01 | V9: 11 | W9: 2020
A10: =O2 -> 4 | B10: =P2 -> 1 | F10: 前期繰越 | J10: 62841 | U10: 2020-12-01 | V10: 12 | W10: 2020 | AA10: 借方勘定科目 | AB10: 借方補助科目 | AC10: 借方税区分 | AD10: 貸方勘定科目 | AE10: 貸方補助科目 | AF10: 貸方税区分 | AG10: 金額 | AH10: 摘要 | AI10: 日付
A11: 4 | B11: 1 | C11: 今野デザイン | D11: ホームページ管理 | E11: =C11&D11 -> 今野デザインホームページ管理 | F11: 広告宣伝費 | I11: 10500 | J11: =IF(A11="","",J10+H11-I11) -> 52341 | N11: =VLOOKUP(A11,$V$2:$W$13,2,FALSE) -> 2020 | O11: =DATE(N11,A11,B11) -> 2020-04-01 | U11: 2021-01-01 | V11: 1 | W11: 2021 | Y11: =IF(F11="","未確定勘定",F11) -> 広告宣伝費 | Z11: =IF(G11="","",G11) ->  | AA11: =IF(I11="",$L$6,IF(I11=0,$L$6,Y11)) -> 広告宣伝費 | AB11: =IF(I11="",$N$7,IF(I11=0,$N$7,Z11)) ->  | AC11: =IF(ISERROR(VLOOKUP(AA11,勘定科目消費税区分テーブル!$B$9:$C$150,2,FALSE)),"",VLOOKUP(AA11,勘定科目消費税区分テーブル!$B$9:$C$150,2,FALSE)) -> 課対仕入10% | AD11: =IF(I11="",Y11,IF(I11=0,Y11,$L$6)) -> 現金 | AE11: =IF(I11="",Z11,IF(I11=0,Z11,$N$7)) ->  | AF11: =IF(ISERROR(VLOOKUP(AD11,勘定科目消費税区分テーブル!$B$9:$C$150,2,FALSE)),"",VLOOKUP(AD11,勘定科目消費税区分テーブル!$B$9:$C$150,2,FALSE)) -> 対象外 | AG11: =IF(H11="",I11,IF(H11=0,I11,H11)) -> 10500 | AH11: =C11&" "&D11 -> 今野デザイン ホームページ管理 | AI11: =TEXT(O11,"yyyy/mm/dd") -> 2020/04/01
A12: 4 | B12: 23 | C12: 坂本飯店 | D12: 接待飲食 | E12: =C12&D12 -> 坂本飯店接待飲食 | F12: 交際費 | I12: 5000 | J12: =IF(A12="","",J11+H12-I12) -> 47341 | N12: =VLOOKUP(A12,$V$2:$W$13,2,FALSE) -> 2020 | O12: =DATE(N12,A12,B12) -> 2020-04-23 | U12: 2021-02-01 | V12: 2 | W12: 2021 | Y12: =IF(F12="","未確定勘定",F12) -> 交際費 | Z12: =IF(G12="","",G12) ->  | AA12: =IF(I12="",$L$6,IF(I12=0,$L$6,Y12)) -> 交際費 | AB12: =IF(I12="",$N$7,IF(I12=0,$N$7,Z12)) ->  | AC12: =IF(ISERROR(VLOOKUP(AA12,勘定科目消費税区分テーブル!$B$9:$C$150,2,FALSE)),"",VLOOKUP(AA12,勘定科目消費税区分テーブル!$B$9:$C$150,2,FALSE)) -> 課対仕入10% | AD12: =IF(I12="",Y12,IF(I12=0,Y12,$L$6)) -> 現金 | AE12: =IF(I12="",Z12,IF(I12=0,Z12,$N$7)) ->  | AF12: =IF(ISERROR(VLOOKUP(AD12,勘定科目消費税区分テーブル!$B$9:$C$150,2,FALSE)),"",VLOOKUP(AD12,勘定科目消費税区分テーブル!$B$9:$C$150,2,FALSE)) -> 対象外 | AG12: =IF(H12="",I12,IF(H12=0,I12,H12)) -> 5000 | AH12: =C12&" "&D12 -> 坂本飯店 接待飲食 | AI12: =TEXT(O12,"yyyy/mm/dd") -> 2020/04/23
A13: 4 | B13: 30 | C13: JR | E13: =C13&D13 -> JR | F13: 旅費交通費 | I13: 3000 | J13: =IF(A13="","",J12+H13-I13) -> 44341 | N13: =VLOOKUP(A13,$V$2:$W$13,2,FALSE) -> 2020 | O13: =DATE(N13,A13,B13) -> 2020-04-30 | U13: =EDATE(U12,1) -> 2021-03-01 | V13: 3 | W13: 2021 | Y13: 旅費交通費 | AA13: 旅費交通費 | AC13: =IF(ISERROR(VLOOKUP(AA13,勘定科目消費税区分テーブル!$B$9:$C$150,2,FALSE)),"",VLOOKUP(AA13,勘定科目消費税区分テーブル!$B$9:$C$150,2,FALSE)) -> 課対仕入10% | AD13: 現金 | AF13: =IF(ISERROR(VLOOKUP(AD13,勘定科目消費税区分テーブル!$B$9:$C$150,2,FALSE)),"",VLOOKUP(AD13,勘定科目消費税区分テーブル!$B$9:$C$150,2,FALSE)) -> 対象外 | AG13: 3000 | AH13: JR | AI13: 2020/04/30
A14: 5 | B14: 1 | C14: 坂本飯店 | D14: 接待飲食 | E14: =C14&D14 -> 坂本飯店接待飲食 | F14: 交際費 | I14: 10800 | J14: =IF(A14="","",J13+H14-I14) -> 33541 | N14: =VLOOKUP(A14,$V$2:$W$13,2,FALSE) -> 2020 | O14: =DATE(N14,A14,B14) -> 2020-05-01 | Y14: 交際費 | AA14: 交際費 | AC14: =IF(ISERROR(VLOOKUP(AA14,勘定科目消費税区分テーブル!$B$9:$C$150,2,FALSE)),"",VLOOKUP(AA14,勘定科目消費税区分テーブル!$B$9:$C$150,2,FALSE)) -> 課対仕入10% | AD14: 現金 | AF14: =IF(ISERROR(VLOOKUP(AD14,勘定科目消費税区分テーブル!$B$9:$C$150,2,FALSE)),"",VLOOKUP(AD14,勘定科目消費税区分テーブル!$B$9:$C$150,2,FALSE)) -> 対象外 | AG14: 10800 | AH14: 坂本飯店 接待飲食 | AI14: 2020/05/01
A15: 5 | B15: 11 | C15: 坂本飯店 | D15: 接待飲食 | E15: =C15&D15 -> 坂本飯店接待飲食 | F15: 交際費 | I15: 24000 | J15: =IF(A15="","",J14+H15-I15) -> 9541 | N15: =VLOOKUP(A15,$V$2:$W$13,2,FALSE) -> 2020 | O15: =DATE(N15,A15,B15) -> 2020-05-11 | Y15: 交際費 | AA15: 交際費 | AC15: =IF(ISERROR(VLOOKUP(AA15,勘定科目消費税区分テーブル!$B$9:$C$150,2,FALSE)),"",VLOOKUP(AA15,勘定科目消費税区分テーブル!$B$9:$C$150,2,FALSE)) -> 課対仕入10% | AD15: 現金 | AF15: =IF(ISERROR(VLOOKUP(AD15,勘定科目消費税区分テーブル!$B$9:$C$150,2,FALSE)),"",VLOOKUP(AD15,勘定科目消費税区分テーブル!$B$9:$C$150,2,FALSE)) -> 対象外 | AG15: 24000 | AH15: 坂本飯店 接待飲食 | AI15: 2020/05/11
A16: 5 | B16: 20 | C16: 東灘信用金庫 | D16: 預金より入金 | E16: =C16&D16 -> 東灘信用金庫預金より入金 | F16: 普通預金 | G16: 東灘信金／御影 | H16: 124566 | J16: =IF(A16="","",J15+H16-I16) -> 134107 | N16: =VLOOKUP(A16,$V$2:$W$13,2,FALSE) -> 2020 | O16: =DATE(N16,A16,B16) -> 2020-05-20 | Y16: 普通預金 | Z16: 東灘信金／御影 | AA16: 現金 | AC16: =IF(ISERROR(VLOOKUP(AA16,勘定科目消費税区分テーブル!$B$9:$C$150,2,FALSE)),"",VLOOKUP(AA16,勘定科目消費税区分テーブル!$B$9:$C$150,2,FALSE)) -> 対象外 | AD16: 普通預金 | AE16: 東灘信金／御影 | AF16: =IF(ISERROR(VLOOKUP(AD16,勘定科目消費税区分テーブル!$B$9:$C$150,2,FALSE)),"",VLOOKUP(AD16,勘定科目消費税区分テーブル!$B$9:$C$150,2,FALSE)) -> 対象外 | AG16: 124566 | AH16: 東灘信用金庫 預金より入金 | AI16: 2020/05/20
A17: 6 | B17: 10 | C17: クロネコ運輸 | E17: =C17&D17 -> クロネコ運輸 | F17: 荷造運賃 | I17: 1020 | J17: =IF(A17="","",J16+H17-I17) -> 133087 | N17: =VLOOKUP(A17,$V$2:$W$13,2,FALSE) -> 2020 | O17: =DATE(N17,A17,B17) -> 2020-06-10 | Y17: 荷造運賃 | AA17: 荷造運賃 | AC17: =IF(ISERROR(VLOOKUP(AA17,勘定科目消費税区分テーブル!$B$9:$C$150,2,FALSE)),"",VLOOKUP(AA17,勘定科目消費税区分テーブル!$B$9:$C$150,2,FALSE)) -> 課対仕入10% | AD17: 現金 | AF17: =IF(ISERROR(VLOOKUP(AD17,勘定科目消費税区分テーブル!$B$9:$C$150,2,FALSE)),"",VLOOKUP(AD17,勘定科目消費税区分テーブル!$B$9:$C$150,2,FALSE)) -> 対象外 | AG17: 1020 | AH17: クロネコ運輸 | AI17: 2020/06/10
A18: 6 | B18: 20 | C18: 東灘信用金庫 | D18: 預金より入金 | E18: =C18&D18 -> 東灘信用金庫預金より入金 | F18: 普通預金 | H18: 80000 | J18: =IF(A18="","",J17+H18-I18) -> 213087 | N18: =VLOOKUP(A18,$V$2:$W$13,2,FALSE) -> 2020 | O18: =DATE(N18,A18,B18) -> 2020-06-20 | Y18: 普通預金 | AA18: 現金 | AC18: =IF(ISERROR(VLOOKUP(AA18,勘定科目消費税区分テーブル!$B$9:$C$150,2,FALSE)),"",VLOOKUP(AA18,勘定科目消費税区分テーブル!$B$9:$C$150,2,FALSE)) -> 対象外 | AD18: 普通預金 | AF18: =IF(ISERROR(VLOOKUP(AD18,勘定科目消費税区分テーブル!$B$9:$C$150,2,FALSE)),"",VLOOKUP(AD18,勘定科目消費税区分テーブル!$B$9:$C$150,2,FALSE)) -> 対象外 | AG18: 80000 | AH18: 東灘信用金庫 預金より入金 | AI18: 2020/06/20
A19: 7 | B19: 1 | C19: 武田商店 | E19: =C19&D19 -> 武田商店 | F19: 買掛金 | G19: 武田商店 | I19: 30000 | J19: =IF(A19="","",J18+H19-I19) -> 183087 | N19: =VLOOKUP(A19,$V$2:$W$13,2,FALSE) -> 2020 | O19: =DATE(N19,A19,B19) -> 2020-07-01 | Y19: 買掛金 | Z19: 武田商店 | AA19: 買掛金 | AB19: 武田商店 | AC19: =IF(ISERROR(VLOOKUP(AA19,勘定科目消費税区分テーブル!$B$9:$C$150,2,FALSE)),"",VLOOKUP(AA19,勘定科目消費税区分テーブル!$B$9:$C$150,2,FALSE)) -> 対象外 | AD19: 現金 | AF19: =IF(ISERROR(VLOOKUP(AD19,勘定科目消費税区分テーブル!$B$9:$C$150,2,FALSE)),"",VLOOKUP(AD19,勘定科目消費税区分テーブル!$B$9:$C$150,2,FALSE)) -> 対象外 | AG19: 30000 | AH19: 武田商店 | AI19: 2020/07/01
A20: 7 | B20: 25 | C20: 御影タクシー | E20: =C20&D20 -> 御影タクシー | F20: 旅費交通費 | I20: 1080 | J20: =IF(A20="","",J19+H20-I20) -> 182007 | N20: =VLOOKUP(A20,$V$2:$W$13,2,FALSE) -> 2020 | O20: =DATE(N20,A20,B20) -> 2020-07-25 | Y20: 旅費交通費 | AA20: 旅費交通費 | AC20: =IF(ISERROR(VLOOKUP(AA20,勘定科目消費税区分テーブル!$B$9:$C$150,2,FALSE)),"",VLOOKUP(AA20,勘定科目消費税区分テーブル!$B$9:$C$150,2,FALSE)) -> 課対仕入10% | AD20: 現金 | AF20: =IF(ISERROR(VLOOKUP(AD20,勘定科目消費税区分テーブル!$B$9:$C$150,2,FALSE)),"",VLOOKUP(AD20,勘定科目消費税区分テーブル!$B$9:$C$150,2,FALSE)) -> 対象外 | AG20: 1080 | AH20: 御影タクシー | AI20: 2020/07/25
A21: 8 | B21: 1 | C21: JR | E21: =C21&D21 -> JR | F21: 旅費交通費 | I21: 5000 | J21: =IF(A21="","",J20+H21-I21) -> 177007 | N21: =VLOOKUP(A21,$V$2:$W$13,2,FALSE) -> 2020 | O21: =DATE(N21,A21,B21) -> 2020-08-01 | Y21: 旅費交通費 | AA21: 旅費交通費 | AC21: =IF(ISERROR(VLOOKUP(AA21,勘定科目消費税区分テーブル!$B$9:$C$150,2,FALSE)),"",VLOOKUP(AA21,勘定科目消費税区分テーブル!$B$9:$C$150,2,FALSE)) -> 課対仕入10% | AD21: 現金 | AF21: =IF(ISERROR(VLOOKUP(AD21,勘定科目消費税区分テーブル!$B$9:$C$150,2,FALSE)),"",VLOOKUP(AD21,勘定科目消費税区分テーブル!$B$9:$C$150,2,FALSE)) -> 対象外 | AG21: 5000 | AH21: JR | AI21: 2020/08/01
A22: 8 | B22: 23 | C22: クロネコ運輸 | E22: =C22&D22 -> クロネコ運輸 | F22: 荷造運賃 | I22: 540 | J22: =IF(A22="","",J21+H22-I22) -> 176467 | N22: =VLOOKUP(A22,$V$2:$W$13,2,FALSE) -> 2020 | O22: =DATE(N22,A22,B22) -> 2020-08-23 | Y22: 荷造運賃 | AA22: 荷造運賃 | AC22: =IF(ISERROR(VLOOKUP(AA22,勘定科目消費税区分テーブル!$B$9:$C$150,2,FALSE)),"",VLOOKUP(AA22,勘定科目消費税区分テーブル!$B$9:$C$150,2,FALSE)) -> 課対仕入10% | AD22: 現金 | AF22: =IF(ISERROR(VLOOKUP(AD22,勘定科目消費税区分テーブル!$B$9:$C$150,2,FALSE)),"",VLOOKUP(AD22,勘定科目消費税区分テーブル!$B$9:$C$150,2,FALSE)) -> 対象外 | AG22: 540 | AH22: クロネコ運輸 | AI22: 2020/08/23
A23: 9 | B23: 20 | C23: 今野デザイン | D23: ホームページ管理 | E23: =C23&D23 -> 今野デザインホームページ管理 | F23: 広告宣伝費 | I23: 30000 | J23: =IF(A23="","",J22+H23-I23) -> 146467 | N23: =VLOOKUP(A23,$V$2:$W$13,2,FALSE) -> 2020 | O23: =DATE(N23,A23,B23) -> 2020-09-20 | Y23: 広告宣伝費 | AA23: 広告宣伝費 | AC23: =IF(ISERROR(VLOOKUP(AA23,勘定科目消費税区分テーブル!$B$9:$C$150,2,FALSE)),"",VLOOKUP(AA23,勘定科目消費税区分テーブル!$B$9:$C$150,2,FALSE)) -> 課対仕入10% | AD23: 現金 | AF23: =IF(ISERROR(VLOOKUP(AD23,勘定科目消費税区分テーブル!$B$9:$C$150,2,FALSE)),"",VLOOKUP(AD23,勘定科目消費税区分テーブル!$B$9:$C$150,2,FALSE)) -> 対象外 | AG23: 30000 | AH23: 今野デザイン ホームページ管理 | AI23: 2020/09/20
A24: 9 | B24: 21 | C24: 坂本飯店 | D24: 接待飲食 | E24: =C24&D24 -> 坂本飯店接待飲食 | F24: 交際費 | I24: 4000 | J24: =IF(A24="","",J23+H24-I24) -> 142467 | N24: =VLOOKUP(A24,$V$2:$W$13,2,FALSE) -> 2020 | O24: =DATE(N24,A24,B24) -> 2020-09-21 | Y24: 交際費 | AA24: 交際費 | AC24: =IF(ISERROR(VLOOKUP(AA24,勘定科目消費税区分テーブル!$B$9:$C$150,2,FALSE)),"",VLOOKUP(AA24,勘定科目消費税区分テーブル!$B$9:$C$150,2,FALSE)) -> 課対仕入10% | AD24: 現金 | AF24: =IF(ISERROR(VLOOKUP(AD24,勘定科目消費税区分テーブル!$B$9:$C$150,2,FALSE)),"",VLOOKUP(AD24,勘定科目消費税区分テーブル!$B$9:$C$150,2,FALSE)) -> 対象外 | AG24: 4000 | AH24: 坂本飯店 接待飲食 | AI24: 2020/09/21
A25: 10 | B25: 20 | C25: 東灘信用金庫 | D25: 預金より入金 | E25: =C25&D25 -> 東灘信用金庫預金より入金 | F25: 普通預金 | G25: 東灘信金／御影 | H25: 24560 | J25: =IF(A25="","",J24+H25-I25) -> 167027 | N25: =VLOOKUP(A25,$V$2:$W$13,2,FALSE) -> 2020 | O25: =DATE(N25,A25,B25) -> 2020-10-20 | Y25: 普通預金 | Z25: 東灘信金／御影 | AA25: 現金 | AC25: =IF(ISERROR(VLOOKUP(AA25,勘定科目消費税区分テーブル!$B$9:$C$150,2,FALSE)),"",VLOOKUP(AA25,勘定科目消費税区分テーブル!$B$9:$C$150,2,FALSE)) -> 対象外 | AD25: 普通預金 | AE25: 東灘信金／御影 | AF25: =IF(ISERROR(VLOOKUP(AD25,勘定科目消費税区分テーブル!$B$9:$C$150,2,FALSE)),"",VLOOKUP(AD25,勘定科目消費税区分テーブル!$B$9:$C$150,2,FALSE)) -> 対象外 | AG25: 24560 | AH25: 東灘信用金庫 預金より入金 | AI25: 2020/10/20
A26: 11 | B26: 11 | C26: クロネコ運輸 | E26: =C26&D26 -> クロネコ運輸 | F26: 荷造運賃 | I26: 940 | J26: =IF(A26="","",J25+H26-I26) -> 166087 | N26: =VLOOKUP(A26,$V$2:$W$13,2,FALSE) -> 2020 | O26: =DATE(N26,A26,B26) -> 2020-11-11 | Y26: 荷造運賃 | AA26: 荷造運賃 | AC26: =IF(ISERROR(VLOOKUP(AA26,勘定科目消費税区分テーブル!$B$9:$C$150,2,FALSE)),"",VLOOKUP(AA26,勘定科目消費税区分テーブル!$B$9:$C$150,2,FALSE)) -> 課対仕入10% | AD26: 現金 | AF26: =IF(ISERROR(VLOOKUP(AD26,勘定科目消費税区分テーブル!$B$9:$C$150,2,FALSE)),"",VLOOKUP(AD26,勘定科目消費税区分テーブル!$B$9:$C$150,2,FALSE)) -> 対象外 | AG26: 940 | AH26: クロネコ運輸 | AI26: 2020/11/11
A27: 11 | B27: 12 | C27: 坂本飯店 | D27: 接待飲食 | E27: =C27&D27 -> 坂本飯店接待飲食 | F27: 交際費 | I27: 5400 | J27: =IF(A27="","",J26+H27-I27) -> 160687 | N27: =VLOOKUP(A27,$V$2:$W$13,2,FALSE) -> 2020 | O27: =DATE(N27,A27,B27) -> 2020-11-12 | Y27: 交際費 | AA27: 交際費 | AC27: =IF(ISERROR(VLOOKUP(AA27,勘定科目消費税区分テーブル!$B$9:$C$150,2,FALSE)),"",VLOOKUP(AA27,勘定科目消費税区分テーブル!$B$9:$C$150,2,FALSE)) -> 課対仕入10% | AD27: 現金 | AF27: =IF(ISERROR(VLOOKUP(AD27,勘定科目消費税区分テーブル!$B$9:$C$150,2,FALSE)),"",VLOOKUP(AD27,勘定科目消費税区分テーブル!$B$9:$C$150,2,FALSE)) -> 対象外 | AG27: 5400 | AH27: 坂本飯店 接待飲食 | AI27: 2020/11/12
A28: 11 | B28: 12 | C28: 一木運送 | E28: =C28&D28 -> 一木運送 | F28: 荷造運賃 | I28: 5400 | J28: =IF(A28="","",J27+H28-I28) -> 155287 | N28: =VLOOKUP(A28,$V$2:$W$13,2,FALSE) -> 2020 | O28: =DATE(N28,A28,B28) -> 2020-11-12 | Y28: 荷造運賃 | AA28: 荷造運賃 | AC28: =IF(ISERROR(VLOOKUP(AA28,勘定科目消費税区分テーブル!$B$9:$C$150,2,FALSE)),"",VLOOKUP(AA28,勘定科目消費税区分テーブル!$B$9:$C$150,2,FALSE)) -> 課対仕入10% | AD28: 現金 | AF28: =IF(ISERROR(VLOOKUP(AD28,勘定科目消費税区分テーブル!$B$9:$C$150,2,FALSE)),"",VLOOKUP(AD28,勘定科目消費税区分テーブル!$B$9:$C$150,2,FALSE)) -> 対象外 | AG28: 5400 | AH28: 一木運送 | AI28: 2020/11/12
A29: 12 | B29: 11 | C29: 今津文具店 | D29: 事務用品 | E29: =C29&D29 -> 今津文具店事務用品 | F29: 事務用品費 | I29: 500 | J29: =IF(A29="","",J28+H29-I29) -> 154787 | N29: =VLOOKUP(A29,$V$2:$W$13,2,FALSE) -> 2020 | O29: =DATE(N29,A29,B29) -> 2020-12-11 | Y29: 事務用品費 | AA29: 事務用品費 | AC29: =IF(ISERROR(VLOOKUP(AA29,勘定科目消費税区分テーブル!$B$9:$C$150,2,FALSE)),"",VLOOKUP(AA29,勘定科目消費税区分テーブル!$B$9:$C$150,2,FALSE)) -> 課対仕入10% | AD29: 現金 | AF29: =IF(ISERROR(VLOOKUP(AD29,勘定科目消費税区分テーブル!$B$9:$C$150,2,FALSE)),"",VLOOKUP(AD29,勘定科目消費税区分テーブル!$B$9:$C$150,2,FALSE)) -> 対象外 | AG29: 500 | AH29: 今津文具店 事務用品 | AI29: 2020/12/11
A30: 12 | B30: 28 | C30: JR | E30: =C30&D30 -> JR | F30: 旅費交通費 | I30: 525 | J30: =IF(A30="","",J29+H30-I30) -> 154262 | N30: =VLOOKUP(A30,$V$2:$W$13,2,FALSE) -> 2020 | O30: =DATE(N30,A30,B30) -> 2020-12-28 | Y30: 旅費交通費 | AA30: 旅費交通費 | AC30: =IF(ISERROR(VLOOKUP(AA30,勘定科目消費税区分テーブル!$B$9:$C$150,2,FALSE)),"",VLOOKUP(AA30,勘定科目消費税区分テーブル!$B$9:$C$150,2,FALSE)) -> 課対仕入10% | AD30: 現金 | AF30: =IF(ISERROR(VLOOKUP(AD30,勘定科目消費税区分テーブル!$B$9:$C$150,2,FALSE)),"",VLOOKUP(AD30,勘定科目消費税区分テーブル!$B$9:$C$150,2,FALSE)) -> 対象外 | AG30: 525 | AH30: JR | AI30: 2020/12/28
A31: 12 | B31: 31 | C31: 一木運送 | E31: =C31&D31 -> 一木運送 | F31: 荷造運賃 | I31: 5400 | J31: =IF(A31="","",J30+H31-I31) -> 148862 | N31: =VLOOKUP(A31,$V$2:$W$13,2,FALSE) -> 2020 | O31: =DATE(N31,A31,B31) -> 2020-12-31 | Y31: 荷造運賃 | AA31: 荷造運賃 | AC31: =IF(ISERROR(VLOOKUP(AA31,勘定科目消費税区分テーブル!$B$9:$C$150,2,FALSE)),"",VLOOKUP(AA31,勘定科目消費税区分テーブル!$B$9:$C$150,2,FALSE)) -> 課対仕入10% | AD31: 現金 | AF31: =IF(ISERROR(VLOOKUP(AD31,勘定科目消費税区分テーブル!$B$9:$C$150,2,FALSE)),"",VLOOKUP(AD31,勘定科目消費税区分テーブル!$B$9:$C$150,2,FALSE)) -> 対象外 | AG31: 5400 | AH31: 一木運送 | AI31: 2020/12/31
E32: =C32&D32 ->  | J32: =IF(A32="","",J31+H32-I32) ->  | N32: =VLOOKUP(A32,$V$2:$W$13,2,FALSE) ->  | O32: =DATE(N32,A32,B32) ->  | Y32: 未確定勘定 | AA32: 現金 | AC32: =IF(ISERROR(VLOOKUP(AA32,勘定科目消費税区分テーブル!$B$9:$C$150,2,FALSE)),"",VLOOKUP(AA32,勘定科目消費税区分テーブル!$B$9:$C$150,2,FALSE)) -> 対象外 | AD32: 未確定勘定 | AF32: =IF(ISERROR(VLOOKUP(AD32,勘定科目消費税区分テーブル!$B$9:$C$150,2,FALSE)),"",VLOOKUP(AD32,勘定科目消費税区分テーブル!$B$9:$C$150,2,FALSE)) -> 対象外 | AG32: 0
E33: =C33&D33 ->  | J33: =IF(A33="","",J32+H33-I33) ->  | N33: =VLOOKUP(A33,$V$2:$W$13,2,FALSE) ->  | O33: =DATE(N33,A33,B33) ->  | Y33: 未確定勘定 | AA33: 現金 | AC33: =IF(ISERROR(VLOOKUP(AA33,勘定科目消費税区分テーブル!$B$9:$C$150,2,FALSE)),"",VLOOKUP(AA33,勘定科目消費税区分テーブル!$B$9:$C$150,2,FALSE)) -> 対象外 | AD33: 未確定勘定 | AF33: =IF(ISERROR(VLOOKUP(AD33,勘定科目消費税区分テーブル!$B$9:$C$150,2,FALSE)),"",VLOOKUP(AD33,勘定科目消費税区分テーブル!$B$9:$C$150,2,FALSE)) -> 対象外 | AG33: 0
E34: =C34&D34 ->  | J34: =IF(A34="","",J33+H34-I34) ->  | N34: =VLOOKUP(A34,$V$2:$W$13,2,FALSE) ->  | O34: =DATE(N34,A34,B34) ->  | Y34: 未確定勘定 | AA34: 現金 | AC34: =IF(ISERROR(VLOOKUP(AA34,勘定科目消費税区分テーブル!$B$9:$C$150,2,FALSE)),"",VLOOKUP(AA34,勘定科目消費税区分テーブル!$B$9:$C$150,2,FALSE)) -> 対象外 | AD34: 未確定勘定 | AF34: =IF(ISERROR(VLOOKUP(AD34,勘定科目消費税区分テーブル!$B$9:$C$150,2,FALSE)),"",VLOOKUP(AD34,勘定科目消費税区分テーブル!$B$9:$C$150,2,FALSE)) -> 対象外 | AG34: 0
E35: =C35&D35 ->  | J35: =IF(A35="","",J34+H35-I35) ->  | N35: =VLOOKUP(A35,$V$2:$W$13,2,FALSE) ->  | O35: =DATE(N35,A35,B35) ->  | Y35: 未確定勘定 | AA35: 現金 | AC35: =IF(ISERROR(VLOOKUP(AA35,勘定科目消費税区分テーブル!$B$9:$C$150,2,FALSE)),"",VLOOKUP(AA35,勘定科目消費税区分テーブル!$B$9:$C$150,2,FALSE)) -> 対象外 | AD35: 未確定勘定 | AF35: =IF(ISERROR(VLOOKUP(AD35,勘定科目消費税区分テーブル!$B$9:$C$150,2,FALSE)),"",VLOOKUP(AD35,勘定科目消費税区分テーブル!$B$9:$C$150,2,FALSE)) -> 対象外 | AG35: 0
E36: =C36&D36 ->  | J36: =IF(A36="","",J35+H36-I36) ->  | N36: =VLOOKUP(A36,$V$2:$W$13,2,FALSE) ->  | O36: =DATE(N36,A36,B36) ->  | Y36: 未確定勘定 | AA36: 現金 | AC36: =IF(ISERROR(VLOOKUP(AA36,勘定科目消費税区分テーブル!$B$9:$C$150,2,FALSE)),"",VLOOKUP(AA36,勘定科目消費税区分テーブル!$B$9:$C$150,2,FALSE)) -> 対象外 | AD36: 未確定勘定 | AF36: =IF(ISERROR(VLOOKUP(AD36,勘定科目消費税区分テーブル!$B$9:$C$150,2,FALSE)),"",VLOOKUP(AD36,勘定科目消費税区分テーブル!$B$9:$C$150,2,FALSE)) -> 対象外 | AG36: 0
E37: =C37&D37 ->  | J37: =IF(A37="","",J36+H37-I37) ->  | N37: =VLOOKUP(A37,$V$2:$W$13,2,FALSE) ->  | O37: =DATE(N37,A37,B37) ->  | Y37: 未確定勘定 | AA37: 現金 | AC37: =IF(ISERROR(VLOOKUP(AA37,勘定科目消費税区分テーブル!$B$9:$C$150,2,FALSE)),"",VLOOKUP(AA37,勘定科目消費税区分テーブル!$B$9:$C$150,2,FALSE)) -> 対象外 | AD37: 未確定勘定 | AF37: =IF(ISERROR(VLOOKUP(AD37,勘定科目消費税区分テーブル!$B$9:$C$150,2,FALSE)),"",VLOOKUP(AD37,勘定科目消費税区分テーブル!$B$9:$C$150,2,FALSE)) -> 対象外 | AG37: 0
E38: =C38&D38 ->  | J38: =IF(A38="","",J37+H38-I38) ->  | N38: =VLOOKUP(A38,$V$2:$W$13,2,FALSE) ->  | O38: =DATE(N38,A38,B38) ->  | Y38: 未確定勘定 | AA38: 現金 | AC38: =IF(ISERROR(VLOOKUP(AA38,勘定科目消費税区分テーブル!$B$9:$C$150,2,FALSE)),"",VLOOKUP(AA38,勘定科目消費税区分テーブル!$B$9:$C$150,2,FALSE)) -> 対象外 | AD38: 未確定勘定 | AF38: =IF(ISERROR(VLOOKUP(AD38,勘定科目消費税区分テーブル!$B$9:$C$150,2,FALSE)),"",VLOOKUP(AD38,勘定科目消費税区分テーブル!$B$9:$C$150,2,FALSE)) -> 対象外 | AG38: 0
E39: =C39&D39 ->  | J39: =IF(A39="","",J38+H39-I39) ->  | N39: =VLOOKUP(A39,$V$2:$W$13,2,FALSE) ->  | O39: =DATE(N39,A39,B39) ->  | Y39: 未確定勘定 | AA39: 現金 | AC39: =IF(ISERROR(VLOOKUP(AA39,勘定科目消費税区分テーブル!$B$9:$C$150,2,FALSE)),"",VLOOKUP(AA39,勘定科目消費税区分テーブル!$B$9:$C$150,2,FALSE)) -> 対象外 | AD39: 未確定勘定 | AF39: =IF(ISERROR(VLOOKUP(AD39,勘定科目消費税区分テーブル!$B$9:$C$150,2,FALSE)),"",VLOOKUP(AD39,勘定科目消費税区分テーブル!$B$9:$C$150,2,FALSE)) -> 対象外 | AG39: 0
E40: =C40&D40 ->  | J40: =IF(A40="","",J39+H40-I40) ->  | N40: =VLOOKUP(A40,$V$2:$W$13,2,FALSE) ->  | O40: =DATE(N40,A40,B40) ->  | Y40: 未確定勘定 | AA40: 現金 | AC40: =IF(ISERROR(VLOOKUP(AA40,勘定科目消費税区分テーブル!$B$9:$C$150,2,FALSE)),"",VLOOKUP(AA40,勘定科目消費税区分テーブル!$B$9:$C$150,2,FALSE)) -> 対象外 | AD40: 未確定勘定 | AF40: =IF(ISERROR(VLOOKUP(AD40,勘定科目消費税区分テーブル!$B$9:$C$150,2,FALSE)),"",VLOOKUP(AD40,勘定科目消費税区分テーブル!$B$9:$C$150,2,FALSE)) -> 対象外 | AG40: 0
E41: =C41&D41 ->  | J41: =IF(A41="","",J40+H41-I41) ->  | N41: =VLOOKUP(A41,$V$2:$W$13,2,FALSE) ->  | O41: =DATE(N41,A41,B41) ->  | Y41: 未確定勘定 | AA41: 現金 | AC41: =IF(ISERROR(VLOOKUP(AA41,勘定科目消費税区分テーブル!$B$9:$C$150,2,FALSE)),"",VLOOKUP(AA41,勘定科目消費税区分テーブル!$B$9:$C$150,2,FALSE)) -> 対象外 | AD41: 未確定勘定 | AF41: =IF(ISERROR(VLOOKUP(AD41,勘定科目消費税区分テーブル!$B$9:$C$150,2,FALSE)),"",VLOOKUP(AD41,勘定科目消費税区分テーブル!$B$9:$C$150,2,FALSE)) -> 対象外 | AG41: 0
E42: =C42&D42 ->  | J42: =IF(A42="","",J41+H42-I42) ->  | N42: =VLOOKUP(A42,$V$2:$W$13,2,FALSE) ->  | O42: =DATE(N42,A42,B42) ->  | Y42: 未確定勘定 | AA42: 現金 | AC42: =IF(ISERROR(VLOOKUP(AA42,勘定科目消費税区分テーブル!$B$9:$C$150,2,FALSE)),"",VLOOKUP(AA42,勘定科目消費税区分テーブル!$B$9:$C$150,2,FALSE)) -> 対象外 | AD42: 未確定勘定 | AF42: =IF(ISERROR(VLOOKUP(AD42,勘定科目消費税区分テーブル!$B$9:$C$150,2,FALSE)),"",VLOOKUP(AD42,勘定科目消費税区分テーブル!$B$9:$C$150,2,FALSE)) -> 対象外 | AG42: 0
E43: =C43&D43 ->  | J43: =IF(A43="","",J42+H43-I43) ->  | N43: =VLOOKUP(A43,$V$2:$W$13,2,FALSE) ->  | O43: =DATE(N43,A43,B43) ->  | Y43: 未確定勘定 | AA43: 現金 | AC43: =IF(ISERROR(VLOOKUP(AA43,勘定科目消費税区分テーブル!$B$9:$C$150,2,FALSE)),"",VLOOKUP(AA43,勘定科目消費税区分テーブル!$B$9:$C$150,2,FALSE)) -> 対象外 | AD43: 未確定勘定 | AF43: =IF(ISERROR(VLOOKUP(AD43,勘定科目消費税区分テーブル!$B$9:$C$150,2,FALSE)),"",VLOOKUP(AD43,勘定科目消費税区分テーブル!$B$9:$C$150,2,FALSE)) -> 対象外 | AG43: 0
E44: =C44&D44 ->  | J44: =IF(A44="","",J43+H44-I44) ->  | N44: =VLOOKUP(A44,$V$2:$W$13,2,FALSE) ->  | O44: =DATE(N44,A44,B44) ->  | Y44: 未確定勘定 | AA44: 現金 | AC44: =IF(ISERROR(VLOOKUP(AA44,勘定科目消費税区分テーブル!$B$9:$C$150,2,FALSE)),"",VLOOKUP(AA44,勘定科目消費税区分テーブル!$B$9:$C$150,2,FALSE)) -> 対象外 | AD44: 未確定勘定 | AF44: =IF(ISERROR(VLOOKUP(AD44,勘定科目消費税区分テーブル!$B$9:$C$150,2,FALSE)),"",VLOOKUP(AD44,勘定科目消費税区分テーブル!$B$9:$C$150,2,FALSE)) -> 対象外 | AG44: 0
E45: =C45&D45 ->  | J45: =IF(A45="","",J44+H45-I45) ->  | N45: =VLOOKUP(A45,$V$2:$W$13,2,FALSE) ->  | O45: =DATE(N45,A45,B45) ->  | Y45: 未確定勘定 | AA45: 現金 | AC45: =IF(ISERROR(VLOOKUP(AA45,勘定科目消費税区分テーブル!$B$9:$C$150,2,FALSE)),"",VLOOKUP(AA45,勘定科目消費税区分テーブル!$B$9:$C$150,2,FALSE)) -> 対象外 | AD45: 未確定勘定 | AF45: =IF(ISERROR(VLOOKUP(AD45,勘定科目消費税区分テーブル!$B$9:$C$150,2,FALSE)),"",VLOOKUP(AD45,勘定科目消費税区分テーブル!$B$9:$C$150,2,FALSE)) -> 対象外 | AG45: 0
E46: =C46&D46 ->  | J46: =IF(A46="","",J45+H46-I46) ->  | N46: =VLOOKUP(A46,$V$2:$W$13,2,FALSE) ->  | O46: =DATE(N46,A46,B46) ->  | Y46: 未確定勘定 | AA46: 現金 | AC46: =IF(ISERROR(VLOOKUP(AA46,勘定科目消費税区分テーブル!$B$9:$C$150,2,FALSE)),"",VLOOKUP(AA46,勘定科目消費税区分テーブル!$B$9:$C$150,2,FALSE)) -> 対象外 | AD46: 未確定勘定 | AF46: =IF(ISERROR(VLOOKUP(AD46,勘定科目消費税区分テーブル!$B$9:$C$150,2,FALSE)),"",VLOOKUP(AD46,勘定科目消費税区分テーブル!$B$9:$C$150,2,FALSE)) -> 対象外 | AG46: 0
E47: =C47&D47 ->  | J47: =IF(A47="","",J46+H47-I47) ->  | N47: =VLOOKUP(A47,$V$2:$W$13,2,FALSE) ->  | O47: =DATE(N47,A47,B47) ->  | Y47: 未確定勘定 | AA47: 現金 | AC47: =IF(ISERROR(VLOOKUP(AA47,勘定科目消費税区分テーブル!$B$9:$C$150,2,FALSE)),"",VLOOKUP(AA47,勘定科目消費税区分テーブル!$B$9:$C$150,2,FALSE)) -> 対象外 | AD47: 未確定勘定 | AF47: =IF(ISERROR(VLOOKUP(AD47,勘定科目消費税区分テーブル!$B$9:$C$150,2,FALSE)),"",VLOOKUP(AD47,勘定科目消費税区分テーブル!$B$9:$C$150,2,FALSE)) -> 対象外 | AG47: 0
E48: =C48&D48 ->  | J48: =IF(A48="","",J47+H48-I48) ->  | N48: =VLOOKUP(A48,$V$2:$W$13,2,FALSE) ->  | O48: =DATE(N48,A48,B48) ->  | Y48: 未確定勘定 | AA48: 現金 | AC48: =IF(ISERROR(VLOOKUP(AA48,勘定科目消費税区分テーブル!$B$9:$C$150,2,FALSE)),"",VLOOKUP(AA48,勘定科目消費税区分テーブル!$B$9:$C$150,2,FALSE)) -> 対象外 | AD48: 未確定勘定 | AF48: =IF(ISERROR(VLOOKUP(AD48,勘定科目消費税区分テーブル!$B$9:$C$150,2,FALSE)),"",VLOOKUP(AD48,勘定科目消費税区分テーブル!$B$9:$C$150,2,FALSE)) -> 対象外 | AG48: 0
E49: =C49&D49 ->  | J49: =IF(A49="","",J48+H49-I49) ->  | N49: =VLOOKUP(A49,$V$2:$W$13,2,FALSE) ->  | O49: =DATE(N49,A49,B49) ->  | Y49: 未確定勘定 | AA49: 現金 | AC49: =IF(ISERROR(VLOOKUP(AA49,勘定科目消費税区分テーブル!$B$9:$C$150,2,FALSE)),"",VLOOKUP(AA49,勘定科目消費税区分テーブル!$B$9:$C$150,2,FALSE)) -> 対象外 | AD49: 未確定勘定 | AF49: =IF(ISERROR(VLOOKUP(AD49,勘定科目消費税区分テーブル!$B$9:$C$150,2,FALSE)),"",VLOOKUP(AD49,勘定科目消費税区分テーブル!$B$9:$C$150,2,FALSE)) -> 対象外 | AG49: 0
E50: =C50&D50 ->  | J50: =IF(A50="","",J49+H50-I50) ->  | N50: =VLOOKUP(A50,$V$2:$W$13,2,FALSE) ->  | O50: =DATE(N50,A50,B50) ->  | Y50: 未確定勘定 | AA50: 現金 | AC50: =IF(ISERROR(VLOOKUP(AA50,勘定科目消費税区分テーブル!$B$9:$C$150,2,FALSE)),"",VLOOKUP(AA50,勘定科目消費税区分テーブル!$B$9:$C$150,2,FALSE)) -> 対象外 | AD50: 未確定勘定 | AF50: =IF(ISERROR(VLOOKUP(AD50,勘定科目消費税区分テーブル!$B$9:$C$150,2,FALSE)),"",VLOOKUP(AD50,勘定科目消費税区分テーブル!$B$9:$C$150,2,FALSE)) -> 対象外 | AG50: 0
E51: =C51&D51 ->  | J51: =IF(A51="","",J50+H51-I51) ->  | N51: =VLOOKUP(A51,$V$2:$W$13,2,FALSE) ->  | O51: =DATE(N51,A51,B51) ->  | Y51: 未確定勘定 | AA51: 現金 | AC51: =IF(ISERROR(VLOOKUP(AA51,勘定科目消費税区分テーブル!$B$9:$C$150,2,FALSE)),"",VLOOKUP(AA51,勘定科目消費税区分テーブル!$B$9:$C$150,2,FALSE)) -> 対象外 | AD51: 未確定勘定 | AF51: =IF(ISERROR(VLOOKUP(AD51,勘定科目消費税区分テーブル!$B$9:$C$150,2,FALSE)),"",VLOOKUP(AD51,勘定科目消費税区分テーブル!$B$9:$C$150,2,FALSE)) -> 対象外 | AG51: 0
E52: =C52&D52 ->  | J52: =IF(A52="","",J51+H52-I52) ->  | N52: =VLOOKUP(A52,$V$2:$W$13,2,FALSE) ->  | O52: =DATE(N52,A52,B52) ->  | Y52: 未確定勘定 | AA52: 現金 | AC52: =IF(ISERROR(VLOOKUP(AA52,勘定科目消費税区分テーブル!$B$9:$C$150,2,FALSE)),"",VLOOKUP(AA52,勘定科目消費税区分テーブル!$B$9:$C$150,2,FALSE)) -> 対象外 | AD52: 未確定勘定 | AF52: =IF(ISERROR(VLOOKUP(AD52,勘定科目消費税区分テーブル!$B$9:$C$150,2,FALSE)),"",VLOOKUP(AD52,勘定科目消費税区分テーブル!$B$9:$C$150,2,FALSE)) -> 対象外 | AG52: 0
E53: =C53&D53 ->  | J53: =IF(A53="","",J52+H53-I53) ->  | N53: =VLOOKUP(A53,$V$2:$W$13,2,FALSE) ->  | O53: =DATE(N53,A53,B53) ->  | Y53: 未確定勘定 | AA53: 現金 | AC53: =IF(ISERROR(VLOOKUP(AA53,勘定科目消費税区分テーブル!$B$9:$C$150,2,FALSE)),"",VLOOKUP(AA53,勘定科目消費税区分テーブル!$B$9:$C$150,2,FALSE)) -> 対象外 | AD53: 未確定勘定 | AF53: =IF(ISERROR(VLOOKUP(AD53,勘定科目消費税区分テーブル!$B$9:$C$150,2,FALSE)),"",VLOOKUP(AD53,勘定科目消費税区分テーブル!$B$9:$C$150,2,FALSE)) -> 対象外 | AG53: 0
E54: =C54&D54 ->  | J54: =IF(A54="","",J53+H54-I54) ->  | N54: =VLOOKUP(A54,$V$2:$W$13,2,FALSE) ->  | O54: =DATE(N54,A54,B54) ->  | Y54: 未確定勘定 | AA54: 現金 | AC54: =IF(ISERROR(VLOOKUP(AA54,勘定科目消費税区分テーブル!$B$9:$C$150,2,FALSE)),"",VLOOKUP(AA54,勘定科目消費税区分テーブル!$B$9:$C$150,2,FALSE)) -> 対象外 | AD54: 未確定勘定 | AF54: =IF(ISERROR(VLOOKUP(AD54,勘定科目消費税区分テーブル!$B$9:$C$150,2,FALSE)),"",VLOOKUP(AD54,勘定科目消費税区分テーブル!$B$9:$C$150,2,FALSE)) -> 対象外 | AG54: 0
E55: =C55&D55 ->  | J55: =IF(A55="","",J54+H55-I55) ->  | N55: =VLOOKUP(A55,$V$2:$W$13,2,FALSE) ->  | O55: =DATE(N55,A55,B55) ->  | Y55: 未確定勘定 | AA55: 現金 | AC55: =IF(ISERROR(VLOOKUP(AA55,勘定科目消費税区分テーブル!$B$9:$C$150,2,FALSE)),"",VLOOKUP(AA55,勘定科目消費税区分テーブル!$B$9:$C$150,2,FALSE)) -> 対象外 | AD55: 未確定勘定 | AF55: =IF(ISERROR(VLOOKUP(AD55,勘定科目消費税区分テーブル!$B$9:$C$150,2,FALSE)),"",VLOOKUP(AD55,勘定科目消費税区分テーブル!$B$9:$C$150,2,FALSE)) -> 対象外 | AG55: 0
E56: =C56&D56 ->  | J56: =IF(A56="","",J55+H56-I56) ->  | N56: =VLOOKUP(A56,$V$2:$W$13,2,FALSE) ->  | O56: =DATE(N56,A56,B56) ->  | Y56: 未確定勘定 | AA56: 現金 | AC56: =IF(ISERROR(VLOOKUP(AA56,勘定科目消費税区分テーブル!$B$9:$C$150,2,FALSE)),"",VLOOKUP(AA56,勘定科目消費税区分テーブル!$B$9:$C$150,2,FALSE)) -> 対象外 | AD56: 未確定勘定 | AF56: =IF(ISERROR(VLOOKUP(AD56,勘定科目消費税区分テーブル!$B$9:$C$150,2,FALSE)),"",VLOOKUP(AD56,勘定科目消費税区分テーブル!$B$9:$C$150,2,FALSE)) -> 対象外 | AG56: 0
E57: =C57&D57 ->  | J57: =IF(A57="","",J56+H57-I57) ->  | N57: =VLOOKUP(A57,$V$2:$W$13,2,FALSE) ->  | O57: =DATE(N57,A57,B57) ->  | Y57: 未確定勘定 | AA57: 現金 | AC57: =IF(ISERROR(VLOOKUP(AA57,勘定科目消費税区分テーブル!$B$9:$C$150,2,FALSE)),"",VLOOKUP(AA57,勘定科目消費税区分テーブル!$B$9:$C$150,2,FALSE)) -> 対象外 | AD57: 未確定勘定 | AF57: =IF(ISERROR(VLOOKUP(AD57,勘定科目消費税区分テーブル!$B$9:$C$150,2,FALSE)),"",VLOOKUP(AD57,勘定科目消費税区分テーブル!$B$9:$C$150,2,FALSE)) -> 対象外 | AG57: 0
E58: =C58&D58 ->  | J58: =IF(A58="","",J57+H58-I58) ->  | N58: =VLOOKUP(A58,$V$2:$W$13,2,FALSE) ->  | O58: =DATE(N58,A58,B58) ->  | Y58: 未確定勘定 | AA58: 現金 | AC58: =IF(ISERROR(VLOOKUP(AA58,勘定科目消費税区分テーブル!$B$9:$C$150,2,FALSE)),"",VLOOKUP(AA58,勘定科目消費税区分テーブル!$B$9:$C$150,2,FALSE)) -> 対象外 | AD58: 未確定勘定 | AF58: =IF(ISERROR(VLOOKUP(AD58,勘定科目消費税区分テーブル!$B$9:$C$150,2,FALSE)),"",VLOOKUP(AD58,勘定科目消費税区分テーブル!$B$9:$C$150,2,FALSE)) -> 対象外 | AG58: 0
E59: =C59&D59 ->  | J59: =IF(A59="","",J58+H59-I59) ->  | N59: =VLOOKUP(A59,$V$2:$W$13,2,FALSE) ->  | O59: =DATE(N59,A59,B59) ->  | Y59: 未確定勘定 | AA59: 現金 | AC59: =IF(ISERROR(VLOOKUP(AA59,勘定科目消費税区分テーブル!$B$9:$C$150,2,FALSE)),"",VLOOKUP(AA59,勘定科目消費税区分テーブル!$B$9:$C$150,2,FALSE)) -> 対象外 | AD59: 未確定勘定 | AF59: =IF(ISERROR(VLOOKUP(AD59,勘定科目消費税区分テーブル!$B$9:$C$150,2,FALSE)),"",VLOOKUP(AD59,勘定科目消費税区分テーブル!$B$9:$C$150,2,FALSE)) -> 対象外 | AG59: 0
E60: =C60&D60 ->  | J60: =IF(A60="","",J59+H60-I60) ->  | N60: =VLOOKUP(A60,$V$2:$W$13,2,FALSE) ->  | O60: =DATE(N60,A60,B60) ->  | Y60: 未確定勘定 | AA60: 現金 | AC60: =IF(ISERROR(VLOOKUP(AA60,勘定科目消費税区分テーブル!$B$9:$C$150,2,FALSE)),"",VLOOKUP(AA60,勘定科目消費税区分テーブル!$B$9:$C$150,2,FALSE)) -> 対象外 | AD60: 未確定勘定 | AF60: =IF(ISERROR(VLOOKUP(AD60,勘定科目消費税区分テーブル!$B$9:$C$150,2,FALSE)),"",VLOOKUP(AD60,勘定科目消費税区分テーブル!$B$9:$C$150,2,FALSE)) -> 対象外 | AG60: 0
E61: =C61&D61 ->  | J61: =IF(A61="","",J60+H61-I61) ->  | N61: =VLOOKUP(A61,$V$2:$W$13,2,FALSE) ->  | O61: =DATE(N61,A61,B61) ->  | Y61: 未確定勘定 | AA61: 現金 | AC61: =IF(ISERROR(VLOOKUP(AA61,勘定科目消費税区分テーブル!$B$9:$C$150,2,FALSE)),"",VLOOKUP(AA61,勘定科目消費税区分テーブル!$B$9:$C$150,2,FALSE)) -> 対象外 | AD61: 未確定勘定 | AF61: =IF(ISERROR(VLOOKUP(AD61,勘定科目消費税区分テーブル!$B$9:$C$150,2,FALSE)),"",VLOOKUP(AD61,勘定科目消費税区分テーブル!$B$9:$C$150,2,FALSE)) -> 対象外 | AG61: 0
E62: =C62&D62 ->  | J62: =IF(A62="","",J61+H62-I62) ->  | N62: =VLOOKUP(A62,$V$2:$W$13,2,FALSE) ->  | O62: =DATE(N62,A62,B62) ->  | Y62: 未確定勘定 | AA62: 現金 | AC62: =IF(ISERROR(VLOOKUP(AA62,勘定科目消費税区分テーブル!$B$9:$C$150,2,FALSE)),"",VLOOKUP(AA62,勘定科目消費税区分テーブル!$B$9:$C$150,2,FALSE)) -> 対象外 | AD62: 未確定勘定 | AF62: =IF(ISERROR(VLOOKUP(AD62,勘定科目消費税区分テーブル!$B$9:$C$150,2,FALSE)),"",VLOOKUP(AD62,勘定科目消費税区分テーブル!$B$9:$C$150,2,FALSE)) -> 対象外 | AG62: 0
E63: =C63&D63 ->  | J63: =IF(A63="","",J62+H63-I63) ->  | N63: =VLOOKUP(A63,$V$2:$W$13,2,FALSE) ->  | O63: =DATE(N63,A63,B63) ->  | Y63: 未確定勘定 | AA63: 現金 | AC63: =IF(ISERROR(VLOOKUP(AA63,勘定科目消費税区分テーブル!$B$9:$C$150,2,FALSE)),"",VLOOKUP(AA63,勘定科目消費税区分テーブル!$B$9:$C$150,2,FALSE)) -> 対象外 | AD63: 未確定勘定 | AF63: =IF(ISERROR(VLOOKUP(AD63,勘定科目消費税区分テーブル!$B$9:$C$150,2,FALSE)),"",VLOOKUP(AD63,勘定科目消費税区分テーブル!$B$9:$C$150,2,FALSE)) -> 対象外 | AG63: 0
E64: =C64&D64 ->  | J64: =IF(A64="","",J63+H64-I64) ->  | N64: =VLOOKUP(A64,$V$2:$W$13,2,FALSE) ->  | O64: =DATE(N64,A64,B64) ->  | Y64: 未確定勘定 | AA64: 現金 | AC64: =IF(ISERROR(VLOOKUP(AA64,勘定科目消費税区分テーブル!$B$9:$C$150,2,FALSE)),"",VLOOKUP(AA64,勘定科目消費税区分テーブル!$B$9:$C$150,2,FALSE)) -> 対象外 | AD64: 未確定勘定 | AF64: =IF(ISERROR(VLOOKUP(AD64,勘定科目消費税区分テーブル!$B$9:$C$150,2,FALSE)),"",VLOOKUP(AD64,勘定科目消費税区分テーブル!$B$9:$C$150,2,FALSE)) -> 対象外 | AG64: 0
E65: =C65&D65 ->  | J65: =IF(A65="","",J64+H65-I65) ->  | N65: =VLOOKUP(A65,$V$2:$W$13,2,FALSE) ->  | O65: =DATE(N65,A65,B65) ->  | Y65: 未確定勘定 | AA65: 現金 | AC65: =IF(ISERROR(VLOOKUP(AA65,勘定科目消費税区分テーブル!$B$9:$C$150,2,FALSE)),"",VLOOKUP(AA65,勘定科目消費税区分テーブル!$B$9:$C$150,2,FALSE)) -> 対象外 | AD65: 未確定勘定 | AF65: =IF(ISERROR(VLOOKUP(AD65,勘定科目消費税区分テーブル!$B$9:$C$150,2,FALSE)),"",VLOOKUP(AD65,勘定科目消費税区分テーブル!$B$9:$C$150,2,FALSE)) -> 対象外 | AG65: 0
E66: =C66&D66 ->  | J66: =IF(A66="","",J65+H66-I66) ->  | N66: =VLOOKUP(A66,$V$2:$W$13,2,FALSE) ->  | O66: =DATE(N66,A66,B66) ->  | Y66: 未確定勘定 | AA66: 現金 | AC66: =IF(ISERROR(VLOOKUP(AA66,勘定科目消費税区分テーブル!$B$9:$C$150,2,FALSE)),"",VLOOKUP(AA66,勘定科目消費税区分テーブル!$B$9:$C$150,2,FALSE)) -> 対象外 | AD66: 未確定勘定 | AF66: =IF(ISERROR(VLOOKUP(AD66,勘定科目消費税区分テーブル!$B$9:$C$150,2,FALSE)),"",VLOOKUP(AD66,勘定科目消費税区分テーブル!$B$9:$C$150,2,FALSE)) -> 対象外 | AG66: 0
E67: =C67&D67 ->  | J67: =IF(A67="","",J66+H67-I67) ->  | N67: =VLOOKUP(A67,$V$2:$W$13,2,FALSE) ->  | O67: =DATE(N67,A67,B67) ->  | Y67: 未確定勘定 | AA67: 現金 | AC67: =IF(ISERROR(VLOOKUP(AA67,勘定科目消費税区分テーブル!$B$9:$C$150,2,FALSE)),"",VLOOKUP(AA67,勘定科目消費税区分テーブル!$B$9:$C$150,2,FALSE)) -> 対象外 | AD67: 未確定勘定 | AF67: =IF(ISERROR(VLOOKUP(AD67,勘定科目消費税区分テーブル!$B$9:$C$150,2,FALSE)),"",VLOOKUP(AD67,勘定科目消費税区分テーブル!$B$9:$C$150,2,FALSE)) -> 対象外 | AG67: 0
E68: =C68&D68 ->  | J68: =IF(A68="","",J67+H68-I68) ->  | N68: =VLOOKUP(A68,$V$2:$W$13,2,FALSE) ->  | O68: =DATE(N68,A68,B68) ->  | Y68: 未確定勘定 | AA68: 現金 | AC68: =IF(ISERROR(VLOOKUP(AA68,勘定科目消費税区分テーブル!$B$9:$C$150,2,FALSE)),"",VLOOKUP(AA68,勘定科目消費税区分テーブル!$B$9:$C$150,2,FALSE)) -> 対象外 | AD68: 未確定勘定 | AF68: =IF(ISERROR(VLOOKUP(AD68,勘定科目消費税区分テーブル!$B$9:$C$150,2,FALSE)),"",VLOOKUP(AD68,勘定科目消費税区分テーブル!$B$9:$C$150,2,FALSE)) -> 対象外 | AG68: 0
E69: =C69&D69 ->  | J69: =IF(A69="","",J68+H69-I69) ->  | N69: =VLOOKUP(A69,$V$2:$W$13,2,FALSE) ->  | O69: =DATE(N69,A69,B69) ->  | Y69: 未確定勘定 | AA69: 現金 | AC69: =IF(ISERROR(VLOOKUP(AA69,勘定科目消費税区分テーブル!$B$9:$C$150,2,FALSE)),"",VLOOKUP(AA69,勘定科目消費税区分テーブル!$B$9:$C$150,2,FALSE)) -> 対象外 | AD69: 未確定勘定 | AF69: =IF(ISERROR(VLOOKUP(AD69,勘定科目消費税区分テーブル!$B$9:$C$150,2,FALSE)),"",VLOOKUP(AD69,勘定科目消費税区分テーブル!$B$9:$C$150,2,FALSE)) -> 対象外 | AG69: 0
E70: =C70&D70 ->  | J70: =IF(A70="","",J69+H70-I70) ->  | N70: =VLOOKUP(A70,$V$2:$W$13,2,FALSE) ->  | O70: =DATE(N70,A70,B70) ->  | Y70: 未確定勘定 | AA70: 現金 | AC70: =IF(ISERROR(VLOOKUP(AA70,勘定科目消費税区分テーブル!$B$9:$C$150,2,FALSE)),"",VLOOKUP(AA70,勘定科目消費税区分テーブル!$B$9:$C$150,2,FALSE)) -> 対象外 | AD70: 未確定勘定 | AF70: =IF(ISERROR(VLOOKUP(AD70,勘定科目消費税区分テーブル!$B$9:$C$150,2,FALSE)),"",VLOOKUP(AD70,勘定科目消費税区分テーブル!$B$9:$C$150,2,FALSE)) -> 対象外 | AG70: 0
E71: =C71&D71 ->  | J71: =IF(A71="","",J70+H71-I71) ->  | N71: =VLOOKUP(A71,$V$2:$W$13,2,FALSE) ->  | O71: =DATE(N71,A71,B71) ->  | Y71: 未確定勘定 | AA71: 現金 | AC71: =IF(ISERROR(VLOOKUP(AA71,勘定科目消費税区分テーブル!$B$9:$C$150,2,FALSE)),"",VLOOKUP(AA71,勘定科目消費税区分テーブル!$B$9:$C$150,2,FALSE)) -> 対象外 | AD71: 未確定勘定 | AF71: =IF(ISERROR(VLOOKUP(AD71,勘定科目消費税区分テーブル!$B$9:$C$150,2,FALSE)),"",VLOOKUP(AD71,勘定科目消費税区分テーブル!$B$9:$C$150,2,FALSE)) -> 対象外 | AG71: 0
E72: =C72&D72 ->  | J72: =IF(A72="","",J71+H72-I72) ->  | N72: =VLOOKUP(A72,$V$2:$W$13,2,FALSE) ->  | O72: =DATE(N72,A72,B72) ->  | Y72: 未確定勘定 | AA72: 現金 | AC72: =IF(ISERROR(VLOOKUP(AA72,勘定科目消費税区分テーブル!$B$9:$C$150,2,FALSE)),"",VLOOKUP(AA72,勘定科目消費税区分テーブル!$B$9:$C$150,2,FALSE)) -> 対象外 | AD72: 未確定勘定 | AF72: =IF(ISERROR(VLOOKUP(AD72,勘定科目消費税区分テーブル!$B$9:$C$150,2,FALSE)),"",VLOOKUP(AD72,勘定科目消費税区分テーブル!$B$9:$C$150,2,FALSE)) -> 対象外 | AG72: 0
E73: =C73&D73 ->  | J73: =IF(A73="","",J72+H73-I73) ->  | N73: =VLOOKUP(A73,$V$2:$W$13,2,FALSE) ->  | O73: =DATE(N73,A73,B73) ->  | Y73: 未確定勘定 | AA73: 現金 | AC73: =IF(ISERROR(VLOOKUP(AA73,勘定科目消費税区分テーブル!$B$9:$C$150,2,FALSE)),"",VLOOKUP(AA73,勘定科目消費税区分テーブル!$B$9:$C$150,2,FALSE)) -> 対象外 | AD73: 未確定勘定 | AF73: =IF(ISERROR(VLOOKUP(AD73,勘定科目消費税区分テーブル!$B$9:$C$150,2,FALSE)),"",VLOOKUP(AD73,勘定科目消費税区分テーブル!$B$9:$C$150,2,FALSE)) -> 対象外 | AG73: 0
E74: =C74&D74 ->  | J74: =IF(A74="","",J73+H74-I74) ->  | N74: =VLOOKUP(A74,$V$2:$W$13,2,FALSE) ->  | O74: =DATE(N74,A74,B74) ->  | Y74: 未確定勘定 | AA74: 現金 | AC74: =IF(ISERROR(VLOOKUP(AA74,勘定科目消費税区分テーブル!$B$9:$C$150,2,FALSE)),"",VLOOKUP(AA74,勘定科目消費税区分テーブル!$B$9:$C$150,2,FALSE)) -> 対象外 | AD74: 未確定勘定 | AF74: =IF(ISERROR(VLOOKUP(AD74,勘定科目消費税区分テーブル!$B$9:$C$150,2,FALSE)),"",VLOOKUP(AD74,勘定科目消費税区分テーブル!$B$9:$C$150,2,FALSE)) -> 対象外 | AG74: 0
E75: =C75&D75 ->  | J75: =IF(A75="","",J74+H75-I75) ->  | N75: =VLOOKUP(A75,$V$2:$W$13,2,FALSE) ->  | O75: =DATE(N75,A75,B75) ->  | Y75: 未確定勘定 | AA75: 現金 | AC75: =IF(ISERROR(VLOOKUP(AA75,勘定科目消費税区分テーブル!$B$9:$C$150,2,FALSE)),"",VLOOKUP(AA75,勘定科目消費税区分テーブル!$B$9:$C$150,2,FALSE)) -> 対象外 | AD75: 未確定勘定 | AF75: =IF(ISERROR(VLOOKUP(AD75,勘定科目消費税区分テーブル!$B$9:$C$150,2,FALSE)),"",VLOOKUP(AD75,勘定科目消費税区分テーブル!$B$9:$C$150,2,FALSE)) -> 対象外 | AG75: 0
E76: =C76&D76 ->  | J76: =IF(A76="","",J75+H76-I76) ->  | N76: =VLOOKUP(A76,$V$2:$W$13,2,FALSE) ->  | O76: =DATE(N76,A76,B76) ->  | Y76: =IF(F76="","未確定勘定",F76) -> 未確定勘定 | Z76: =IF(G76="","",G76) ->  | AA76: =IF(I76="",$L$6,IF(I76=0,$L$6,Y76)) -> 現金 | AB76: =IF(I76="",$N$7,IF(I76=0,$N$7,Z76)) ->  | AC76: =IF(ISERROR(VLOOKUP(AA76,勘定科目消費税区分テーブル!$B$9:$C$150,2,FALSE)),"",VLOOKUP(AA76,勘定科目消費税区分テーブル!$B$9:$C$150,2,FALSE)) -> 対象外 | AD76: =IF(I76="",Y76,IF(I76=0,Y76,$L$6)) -> 未確定勘定 | AE76: =IF(I76="",Z76,IF(I76=0,Z76,$N$7)) ->  | AF76: =IF(ISERROR(VLOOKUP(AD76,勘定科目消費税区分テーブル!$B$9:$C$150,2,FALSE)),"",VLOOKUP(AD76,勘定科目消費税区分テーブル!$B$9:$C$150,2,FALSE)) -> 対象外 | AG76: =IF(H76="",I76,IF(H76=0,I76,H76)) -> 0 | AH76: =C76&" "&D76 ->  | AI76: =TEXT(O76,"yyyy/mm/dd") -> 
E77: =C77&D77 ->  | J77: =IF(A77="","",J76+H77-I77) ->  | N77: =VLOOKUP(A77,$V$2:$W$13,2,FALSE) ->  | O77: =DATE(N77,A77,B77) ->  | Y77: 未確定勘定 | AA77: 現金 | AC77: =IF(ISERROR(VLOOKUP(AA77,勘定科目消費税区分テーブル!$B$9:$C$150,2,FALSE)),"",VLOOKUP(AA77,勘定科目消費税区分テーブル!$B$9:$C$150,2,FALSE)) -> 対象外 | AD77: 未確定勘定 | AF77: =IF(ISERROR(VLOOKUP(AD77,勘定科目消費税区分テーブル!$B$9:$C$150,2,FALSE)),"",VLOOKUP(AD77,勘定科目消費税区分テーブル!$B$9:$C$150,2,FALSE)) -> 対象外 | AG77: 0
E78: =C78&D78 ->  | J78: =IF(A78="","",J77+H78-I78) ->  | N78: =VLOOKUP(A78,$V$2:$W$13,2,FALSE) ->  | O78: =DATE(N78,A78,B78) ->  | Y78: 未確定勘定 | AA78: 現金 | AC78: =IF(ISERROR(VLOOKUP(AA78,勘定科目消費税区分テーブル!$B$9:$C$150,2,FALSE)),"",VLOOKUP(AA78,勘定科目消費税区分テーブル!$B$9:$C$150,2,FALSE)) -> 対象外 | AD78: 未確定勘定 | AF78: =IF(ISERROR(VLOOKUP(AD78,勘定科目消費税区分テーブル!$B$9:$C$150,2,FALSE)),"",VLOOKUP(AD78,勘定科目消費税区分テーブル!$B$9:$C$150,2,FALSE)) -> 対象外 | AG78: 0
E79: =C79&D79 ->  | J79: =IF(A79="","",J78+H79-I79) ->  | N79: =VLOOKUP(A79,$V$2:$W$13,2,FALSE) ->  | O79: =DATE(N79,A79,B79) ->  | Y79: 未確定勘定 | AA79: 現金 | AC79: =IF(ISERROR(VLOOKUP(AA79,勘定科目消費税区分テーブル!$B$9:$C$150,2,FALSE)),"",VLOOKUP(AA79,勘定科目消費税区分テーブル!$B$9:$C$150,2,FALSE)) -> 対象外 | AD79: 未確定勘定 | AF79: =IF(ISERROR(VLOOKUP(AD79,勘定科目消費税区分テーブル!$B$9:$C$150,2,FALSE)),"",VLOOKUP(AD79,勘定科目消費税区分テーブル!$B$9:$C$150,2,FALSE)) -> 対象外 | AG79: 0
E80: =C80&D80 ->  | J80: =IF(A80="","",J79+H80-I80) ->  | N80: =VLOOKUP(A80,$V$2:$W$13,2,FALSE) ->  | O80: =DATE(N80,A80,B80) ->  | Y80: 未確定勘定 | AA80: 現金 | AC80: =IF(ISERROR(VLOOKUP(AA80,勘定科目消費税区分テーブル!$B$9:$C$150,2,FALSE)),"",VLOOKUP(AA80,勘定科目消費税区分テーブル!$B$9:$C$150,2,FALSE)) -> 対象外 | AD80: 未確定勘定 | AF80: =IF(ISERROR(VLOOKUP(AD80,勘定科目消費税区分テーブル!$B$9:$C$150,2,FALSE)),"",VLOOKUP(AD80,勘定科目消費税区分テーブル!$B$9:$C$150,2,FALSE)) -> 対象外 | AG80: 0
E81: =C81&D81 ->  | J81: =IF(A81="","",J80+H81-I81) ->  | N81: =VLOOKUP(A81,$V$2:$W$13,2,FALSE) ->  | O81: =DATE(N81,A81,B81) ->  | Y81: 未確定勘定 | AA81: 現金 | AC81: =IF(ISERROR(VLOOKUP(AA81,勘定科目消費税区分テーブル!$B$9:$C$150,2,FALSE)),"",VLOOKUP(AA81,勘定科目消費税区分テーブル!$B$9:$C$150,2,FALSE)) -> 対象外 | AD81: 未確定勘定 | AF81: =IF(ISERROR(VLOOKUP(AD81,勘定科目消費税区分テーブル!$B$9:$C$150,2,FALSE)),"",VLOOKUP(AD81,勘定科目消費税区分テーブル!$B$9:$C$150,2,FALSE)) -> 対象外 | AG81: 0
E82: =C82&D82 ->  | J82: =IF(A82="","",J81+H82-I82) ->  | N82: =VLOOKUP(A82,$V$2:$W$13,2,FALSE) ->  | O82: =DATE(N82,A82,B82) ->  | Y82: 未確定勘定 | AA82: 現金 | AC82: =IF(ISERROR(VLOOKUP(AA82,勘定科目消費税区分テーブル!$B$9:$C$150,2,FALSE)),"",VLOOKUP(AA82,勘定科目消費税区分テーブル!$B$9:$C$150,2,FALSE)) -> 対象外 | AD82: 未確定勘定 | AF82: =IF(ISERROR(VLOOKUP(AD82,勘定科目消費税区分テーブル!$B$9:$C$150,2,FALSE)),"",VLOOKUP(AD82,勘定科目消費税区分テーブル!$B$9:$C$150,2,FALSE)) -> 対象外 | AG82: 0
E83: =C83&D83 ->  | J83: =IF(A83="","",J82+H83-I83) ->  | N83: =VLOOKUP(A83,$V$2:$W$13,2,FALSE) ->  | O83: =DATE(N83,A83,B83) ->  | Y83: 未確定勘定 | AA83: 現金 | AC83: =IF(ISERROR(VLOOKUP(AA83,勘定科目消費税区分テーブル!$B$9:$C$150,2,FALSE)),"",VLOOKUP(AA83,勘定科目消費税区分テーブル!$B$9:$C$150,2,FALSE)) -> 対象外 | AD83: 未確定勘定 | AF83: =IF(ISERROR(VLOOKUP(AD83,勘定科目消費税区分テーブル!$B$9:$C$150,2,FALSE)),"",VLOOKUP(AD83,勘定科目消費税区分テーブル!$B$9:$C$150,2,FALSE)) -> 対象外 | AG83: 0
E84: =C84&D84 ->  | J84: =IF(A84="","",J83+H84-I84) ->  | N84: =VLOOKUP(A84,$V$2:$W$13,2,FALSE) ->  | O84: =DATE(N84,A84,B84) ->  | Y84: 未確定勘定 | AA84: 現金 | AC84: =IF(ISERROR(VLOOKUP(AA84,勘定科目消費税区分テーブル!$B$9:$C$150,2,FALSE)),"",VLOOKUP(AA84,勘定科目消費税区分テーブル!$B$9:$C$150,2,FALSE)) -> 対象外 | AD84: 未確定勘定 | AF84: =IF(ISERROR(VLOOKUP(AD84,勘定科目消費税区分テーブル!$B$9:$C$150,2,FALSE)),"",VLOOKUP(AD84,勘定科目消費税区分テーブル!$B$9:$C$150,2,FALSE)) -> 対象外 | AG84: 0
E85: =C85&D85 ->  | J85: =IF(A85="","",J84+H85-I85) ->  | N85: =VLOOKUP(A85,$V$2:$W$13,2,FALSE) ->  | O85: =DATE(N85,A85,B85) ->  | Y85: 未確定勘定 | AA85: 現金 | AC85: =IF(ISERROR(VLOOKUP(AA85,勘定科目消費税区分テーブル!$B$9:$C$150,2,FALSE)),"",VLOOKUP(AA85,勘定科目消費税区分テーブル!$B$9:$C$150,2,FALSE)) -> 対象外 | AD85: 未確定勘定 | AF85: =IF(ISERROR(VLOOKUP(AD85,勘定科目消費税区分テーブル!$B$9:$C$150,2,FALSE)),"",VLOOKUP(AD85,勘定科目消費税区分テーブル!$B$9:$C$150,2,FALSE)) -> 対象外 | AG85: 0
E86: =C86&D86 ->  | J86: =IF(A86="","",J85+H86-I86) ->  | N86: =VLOOKUP(A86,$V$2:$W$13,2,FALSE) ->  | O86: =DATE(N86,A86,B86) ->  | Y86: 未確定勘定 | AA86: 現金 | AC86: =IF(ISERROR(VLOOKUP(AA86,勘定科目消費税区分テーブル!$B$9:$C$150,2,FALSE)),"",VLOOKUP(AA86,勘定科目消費税区分テーブル!$B$9:$C$150,2,FALSE)) -> 対象外 | AD86: 未確定勘定 | AF86: =IF(ISERROR(VLOOKUP(AD86,勘定科目消費税区分テーブル!$B$9:$C$150,2,FALSE)),"",VLOOKUP(AD86,勘定科目消費税区分テーブル!$B$9:$C$150,2,FALSE)) -> 対象外 | AG86: 0
E87: =C87&D87 ->  | J87: =IF(A87="","",J86+H87-I87) ->  | N87: =VLOOKUP(A87,$V$2:$W$13,2,FALSE) ->  | O87: =DATE(N87,A87,B87) ->  | Y87: 未確定勘定 | AA87: 現金 | AC87: =IF(ISERROR(VLOOKUP(AA87,勘定科目消費税区分テーブル!$B$9:$C$150,2,FALSE)),"",VLOOKUP(AA87,勘定科目消費税区分テーブル!$B$9:$C$150,2,FALSE)) -> 対象外 | AD87: 未確定勘定 | AF87: =IF(ISERROR(VLOOKUP(AD87,勘定科目消費税区分テーブル!$B$9:$C$150,2,FALSE)),"",VLOOKUP(AD87,勘定科目消費税区分テーブル!$B$9:$C$150,2,FALSE)) -> 対象外 | AG87: 0
E88: =C88&D88 ->  | J88: =IF(A88="","",J87+H88-I88) ->  | N88: =VLOOKUP(A88,$V$2:$W$13,2,FALSE) ->  | O88: =DATE(N88,A88,B88) ->  | Y88: 未確定勘定 | AA88: 現金 | AC88: =IF(ISERROR(VLOOKUP(AA88,勘定科目消費税区分テーブル!$B$9:$C$150,2,FALSE)),"",VLOOKUP(AA88,勘定科目消費税区分テーブル!$B$9:$C$150,2,FALSE)) -> 対象外 | AD88: 未確定勘定 | AF88: =IF(ISERROR(VLOOKUP(AD88,勘定科目消費税区分テーブル!$B$9:$C$150,2,FALSE)),"",VLOOKUP(AD88,勘定科目消費税区分テーブル!$B$9:$C$150,2,FALSE)) -> 対象外 | AG88: 0
E89: =C89&D89 ->  | J89: =IF(A89="","",J88+H89-I89) ->  | N89: =VLOOKUP(A89,$V$2:$W$13,2,FALSE) ->  | O89: =DATE(N89,A89,B89) ->  | Y89: 未確定勘定 | AA89: 現金 | AC89: =IF(ISERROR(VLOOKUP(AA89,勘定科目消費税区分テーブル!$B$9:$C$150,2,FALSE)),"",VLOOKUP(AA89,勘定科目消費税区分テーブル!$B$9:$C$150,2,FALSE)) -> 対象外 | AD89: 未確定勘定 | AF89: =IF(ISERROR(VLOOKUP(AD89,勘定科目消費税区分テーブル!$B$9:$C$150,2,FALSE)),"",VLOOKUP(AD89,勘定科目消費税区分テーブル!$B$9:$C$150,2,FALSE)) -> 対象外 | AG89: 0
E90: =C90&D90 ->  | J90: =IF(A90="","",J89+H90-I90) ->  | N90: =VLOOKUP(A90,$V$2:$W$13,2,FALSE) ->  | O90: =DATE(N90,A90,B90) ->  | Y90: 未確定勘定 | AA90: 現金 | AC90: =IF(ISERROR(VLOOKUP(AA90,勘定科目消費税区分テーブル!$B$9:$C$150,2,FALSE)),"",VLOOKUP(AA90,勘定科目消費税区分テーブル!$B$9:$C$150,2,FALSE)) -> 対象外 | AD90: 未確定勘定 | AF90: =IF(ISERROR(VLOOKUP(AD90,勘定科目消費税区分テーブル!$B$9:$C$150,2,FALSE)),"",VLOOKUP(AD90,勘定科目消費税区分テーブル!$B$9:$C$150,2,FALSE)) -> 対象外 | AG90: 0
E91: =C91&D91 ->  | J91: =IF(A91="","",J90+H91-I91) ->  | N91: =VLOOKUP(A91,$V$2:$W$13,2,FALSE) ->  | O91: =DATE(N91,A91,B91) ->  | Y91: 未確定勘定 | AA91: 現金 | AC91: =IF(ISERROR(VLOOKUP(AA91,勘定科目消費税区分テーブル!$B$9:$C$150,2,FALSE)),"",VLOOKUP(AA91,勘定科目消費税区分テーブル!$B$9:$C$150,2,FALSE)) -> 対象外 | AD91: 未確定勘定 | AF91: =IF(ISERROR(VLOOKUP(AD91,勘定科目消費税区分テーブル!$B$9:$C$150,2,FALSE)),"",VLOOKUP(AD91,勘定科目消費税区分テーブル!$B$9:$C$150,2,FALSE)) -> 対象外 | AG91: 0
E92: =C92&D92 ->  | J92: =IF(A92="","",J91+H92-I92) ->  | N92: =VLOOKUP(A92,$V$2:$W$13,2,FALSE) ->  | O92: =DATE(N92,A92,B92) ->  | Y92: 未確定勘定 | AA92: 現金 | AC92: =IF(ISERROR(VLOOKUP(AA92,勘定科目消費税区分テーブル!$B$9:$C$150,2,FALSE)),"",VLOOKUP(AA92,勘定科目消費税区分テーブル!$B$9:$C$150,2,FALSE)) -> 対象外 | AD92: 未確定勘定 | AF92: =IF(ISERROR(VLOOKUP(AD92,勘定科目消費税区分テーブル!$B$9:$C$150,2,FALSE)),"",VLOOKUP(AD92,勘定科目消費税区分テーブル!$B$9:$C$150,2,FALSE)) -> 対象外 | AG92: 0
E93: =C93&D93 ->  | J93: =IF(A93="","",J92+H93-I93) ->  | N93: =VLOOKUP(A93,$V$2:$W$13,2,FALSE) ->  | O93: =DATE(N93,A93,B93) ->  | Y93: 未確定勘定 | AA93: 現金 | AC93: =IF(ISERROR(VLOOKUP(AA93,勘定科目消費税区分テーブル!$B$9:$C$150,2,FALSE)),"",VLOOKUP(AA93,勘定科目消費税区分テーブル!$B$9:$C$150,2,FALSE)) -> 対象外 | AD93: 未確定勘定 | AF93: =IF(ISERROR(VLOOKUP(AD93,勘定科目消費税区分テーブル!$B$9:$C$150,2,FALSE)),"",VLOOKUP(AD93,勘定科目消費税区分テーブル!$B$9:$C$150,2,FALSE)) -> 対象外 | AG93: 0
E94: =C94&D94 ->  | J94: =IF(A94="","",J93+H94-I94) ->  | N94: =VLOOKUP(A94,$V$2:$W$13,2,FALSE) ->  | O94: =DATE(N94,A94,B94) ->  | Y94: 未確定勘定 | AA94: 現金 | AC94: =IF(ISERROR(VLOOKUP(AA94,勘定科目消費税区分テーブル!$B$9:$C$150,2,FALSE)),"",VLOOKUP(AA94,勘定科目消費税区分テーブル!$B$9:$C$150,2,FALSE)) -> 対象外 | AD94: 未確定勘定 | AF94: =IF(ISERROR(VLOOKUP(AD94,勘定科目消費税区分テーブル!$B$9:$C$150,2,FALSE)),"",VLOOKUP(AD94,勘定科目消費税区分テーブル!$B$9:$C$150,2,FALSE)) -> 対象外 | AG94: 0
E95: =C95&D95 ->  | J95: =IF(A95="","",J94+H95-I95) ->  | N95: =VLOOKUP(A95,$V$2:$W$13,2,FALSE) ->  | O95: =DATE(N95,A95,B95) ->  | Y95: 未確定勘定 | AA95: 現金 | AC95: =IF(ISERROR(VLOOKUP(AA95,勘定科目消費税区分テーブル!$B$9:$C$150,2,FALSE)),"",VLOOKUP(AA95,勘定科目消費税区分テーブル!$B$9:$C$150,2,FALSE)) -> 対象外 | AD95: 未確定勘定 | AF95: =IF(ISERROR(VLOOKUP(AD95,勘定科目消費税区分テーブル!$B$9:$C$150,2,FALSE)),"",VLOOKUP(AD95,勘定科目消費税区分テーブル!$B$9:$C$150,2,FALSE)) -> 対象外 | AG95: 0
E96: =C96&D96 ->  | J96: =IF(A96="","",J95+H96-I96) ->  | N96: =VLOOKUP(A96,$V$2:$W$13,2,FALSE) ->  | O96: =DATE(N96,A96,B96) ->  | Y96: 未確定勘定 | AA96: 現金 | AC96: =IF(ISERROR(VLOOKUP(AA96,勘定科目消費税区分テーブル!$B$9:$C$150,2,FALSE)),"",VLOOKUP(AA96,勘定科目消費税区分テーブル!$B$9:$C$150,2,FALSE)) -> 対象外 | AD96: 未確定勘定 | AF96: =IF(ISERROR(VLOOKUP(AD96,勘定科目消費税区分テーブル!$B$9:$C$150,2,FALSE)),"",VLOOKUP(AD96,勘定科目消費税区分テーブル!$B$9:$C$150,2,FALSE)) -> 対象外 | AG96: 0
E97: =C97&D97 ->  | J97: =IF(A97="","",J96+H97-I97) ->  | N97: =VLOOKUP(A97,$V$2:$W$13,2,FALSE) ->  | O97: =DATE(N97,A97,B97) ->  | Y97: 未確定勘定 | AA97: 現金 | AC97: =IF(ISERROR(VLOOKUP(AA97,勘定科目消費税区分テーブル!$B$9:$C$150,2,FALSE)),"",VLOOKUP(AA97,勘定科目消費税区分テーブル!$B$9:$C$150,2,FALSE)) -> 対象外 | AD97: 未確定勘定 | AF97: =IF(ISERROR(VLOOKUP(AD97,勘定科目消費税区分テーブル!$B$9:$C$150,2,FALSE)),"",VLOOKUP(AD97,勘定科目消費税区分テーブル!$B$9:$C$150,2,FALSE)) -> 対象外 | AG97: 0
E98: =C98&D98 ->  | J98: =IF(A98="","",J97+H98-I98) ->  | N98: =VLOOKUP(A98,$V$2:$W$13,2,FALSE) ->  | O98: =DATE(N98,A98,B98) ->  | Y98: 未確定勘定 | AA98: 現金 | AC98: =IF(ISERROR(VLOOKUP(AA98,勘定科目消費税区分テーブル!$B$9:$C$150,2,FALSE)),"",VLOOKUP(AA98,勘定科目消費税区分テーブル!$B$9:$C$150,2,FALSE)) -> 対象外 | AD98: 未確定勘定 | AF98: =IF(ISERROR(VLOOKUP(AD98,勘定科目消費税区分テーブル!$B$9:$C$150,2,FALSE)),"",VLOOKUP(AD98,勘定科目消費税区分テーブル!$B$9:$C$150,2,FALSE)) -> 対象外 | AG98: 0
E99: =C99&D99 ->  | J99: =IF(A99="","",J98+H99-I99) ->  | N99: =VLOOKUP(A99,$V$2:$W$13,2,FALSE) ->  | O99: =DATE(N99,A99,B99) ->  | Y99: 未確定勘定 | AA99: 現金 | AC99: =IF(ISERROR(VLOOKUP(AA99,勘定科目消費税区分テーブル!$B$9:$C$150,2,FALSE)),"",VLOOKUP(AA99,勘定科目消費税区分テーブル!$B$9:$C$150,2,FALSE)) -> 対象外 | AD99: 未確定勘定 | AF99: =IF(ISERROR(VLOOKUP(AD99,勘定科目消費税区分テーブル!$B$9:$C$150,2,FALSE)),"",VLOOKUP(AD99,勘定科目消費税区分テーブル!$B$9:$C$150,2,FALSE)) -> 対象外 | AG99: 0
E100: =C100&D100 ->  | J100: =IF(A100="","",J99+H100-I100) ->  | N100: =VLOOKUP(A100,$V$2:$W$13,2,FALSE) ->  | O100: =DATE(N100,A100,B100) ->  | Y100: 未確定勘定 | AA100: 現金 | AC100: =IF(ISERROR(VLOOKUP(AA100,勘定科目消費税区分テーブル!$B$9:$C$150,2,FALSE)),"",VLOOKUP(AA100,勘定科目消費税区分テーブル!$B$9:$C$150,2,FALSE)) -> 対象外 | AD100: 未確定勘定 | AF100: =IF(ISERROR(VLOOKUP(AD100,勘定科目消費税区分テーブル!$B$9:$C$150,2,FALSE)),"",VLOOKUP(AD100,勘定科目消費税区分テーブル!$B$9:$C$150,2,FALSE)) -> 対象外 | AG100: 0
E101: =C101&D101 ->  | J101: =IF(A101="","",J100+H101-I101) ->  | N101: =VLOOKUP(A101,$V$2:$W$13,2,FALSE) ->  | O101: =DATE(N101,A101,B101) ->  | Y101: 未確定勘定 | AA101: 現金 | AC101: =IF(ISERROR(VLOOKUP(AA101,勘定科目消費税区分テーブル!$B$9:$C$150,2,FALSE)),"",VLOOKUP(AA101,勘定科目消費税区分テーブル!$B$9:$C$150,2,FALSE)) -> 対象外 | AD101: 未確定勘定 | AF101: =IF(ISERROR(VLOOKUP(AD101,勘定科目消費税区分テーブル!$B$9:$C$150,2,FALSE)),"",VLOOKUP(AD101,勘定科目消費税区分テーブル!$B$9:$C$150,2,FALSE)) -> 対象外 | AG101: 0
E102: =C102&D102 ->  | J102: =IF(A102="","",J101+H102-I102) ->  | N102: =VLOOKUP(A102,$V$2:$W$13,2,FALSE) ->  | O102: =DATE(N102,A102,B102) ->  | Y102: 未確定勘定 | AA102: 現金 | AC102: =IF(ISERROR(VLOOKUP(AA102,勘定科目消費税区分テーブル!$B$9:$C$150,2,FALSE)),"",VLOOKUP(AA102,勘定科目消費税区分テーブル!$B$9:$C$150,2,FALSE)) -> 対象外 | AD102: 未確定勘定 | AF102: =IF(ISERROR(VLOOKUP(AD102,勘定科目消費税区分テーブル!$B$9:$C$150,2,FALSE)),"",VLOOKUP(AD102,勘定科目消費税区分テーブル!$B$9:$C$150,2,FALSE)) -> 対象外 | AG102: 0
E103: =C103&D103 ->  | J103: =IF(A103="","",J102+H103-I103) ->  | N103: =VLOOKUP(A103,$V$2:$W$13,2,FALSE) ->  | O103: =DATE(N103,A103,B103) ->  | Y103: 未確定勘定 | AA103: 現金 | AC103: =IF(ISERROR(VLOOKUP(AA103,勘定科目消費税区分テーブル!$B$9:$C$150,2,FALSE)),"",VLOOKUP(AA103,勘定科目消費税区分テーブル!$B$9:$C$150,2,FALSE)) -> 対象外 | AD103: 未確定勘定 | AF103: =IF(ISERROR(VLOOKUP(AD103,勘定科目消費税区分テーブル!$B$9:$C$150,2,FALSE)),"",VLOOKUP(AD103,勘定科目消費税区分テーブル!$B$9:$C$150,2,FALSE)) -> 対象外 | AG103: 0
E104: =C104&D104 ->  | J104: =IF(A104="","",J103+H104-I104) ->  | N104: =VLOOKUP(A104,$V$2:$W$13,2,FALSE) ->  | O104: =DATE(N104,A104,B104) ->  | Y104: 未確定勘定 | AA104: 現金 | AC104: =IF(ISERROR(VLOOKUP(AA104,勘定科目消費税区分テーブル!$B$9:$C$150,2,FALSE)),"",VLOOKUP(AA104,勘定科目消費税区分テーブル!$B$9:$C$150,2,FALSE)) -> 対象外 | AD104: 未確定勘定 | AF104: =IF(ISERROR(VLOOKUP(AD104,勘定科目消費税区分テーブル!$B$9:$C$150,2,FALSE)),"",VLOOKUP(AD104,勘定科目消費税区分テーブル!$B$9:$C$150,2,FALSE)) -> 対象外 | AG104: 0
E105: =C105&D105 ->  | J105: =IF(A105="","",J104+H105-I105) ->  | N105: =VLOOKUP(A105,$V$2:$W$13,2,FALSE) ->  | O105: =DATE(N105,A105,B105) ->  | Y105: 未確定勘定 | AA105: 現金 | AC105: =IF(ISERROR(VLOOKUP(AA105,勘定科目消費税区分テーブル!$B$9:$C$150,2,FALSE)),"",VLOOKUP(AA105,勘定科目消費税区分テーブル!$B$9:$C$150,2,FALSE)) -> 対象外 | AD105: 未確定勘定 | AF105: =IF(ISERROR(VLOOKUP(AD105,勘定科目消費税区分テーブル!$B$9:$C$150,2,FALSE)),"",VLOOKUP(AD105,勘定科目消費税区分テーブル!$B$9:$C$150,2,FALSE)) -> 対象外 | AG105: 0
E106: =C106&D106 ->  | J106: =IF(A106="","",J105+H106-I106) ->  | N106: =VLOOKUP(A106,$V$2:$W$13,2,FALSE) ->  | O106: =DATE(N106,A106,B106) ->  | Y106: 未確定勘定 | AA106: 現金 | AC106: =IF(ISERROR(VLOOKUP(AA106,勘定科目消費税区分テーブル!$B$9:$C$150,2,FALSE)),"",VLOOKUP(AA106,勘定科目消費税区分テーブル!$B$9:$C$150,2,FALSE)) -> 対象外 | AD106: 未確定勘定 | AF106: =IF(ISERROR(VLOOKUP(AD106,勘定科目消費税区分テーブル!$B$9:$C$150,2,FALSE)),"",VLOOKUP(AD106,勘定科目消費税区分テーブル!$B$9:$C$150,2,FALSE)) -> 対象外 | AG106: 0
E107: =C107&D107 ->  | J107: =IF(A107="","",J106+H107-I107) ->  | N107: =VLOOKUP(A107,$V$2:$W$13,2,FALSE) ->  | O107: =DATE(N107,A107,B107) ->  | Y107: 未確定勘定 | AA107: 現金 | AC107: =IF(ISERROR(VLOOKUP(AA107,勘定科目消費税区分テーブル!$B$9:$C$150,2,FALSE)),"",VLOOKUP(AA107,勘定科目消費税区分テーブル!$B$9:$C$150,2,FALSE)) -> 対象外 | AD107: 未確定勘定 | AF107: =IF(ISERROR(VLOOKUP(AD107,勘定科目消費税区分テーブル!$B$9:$C$150,2,FALSE)),"",VLOOKUP(AD107,勘定科目消費税区分テーブル!$B$9:$C$150,2,FALSE)) -> 対象外 | AG107: 0
E108: =C108&D108 ->  | J108: =IF(A108="","",J107+H108-I108) ->  | N108: =VLOOKUP(A108,$V$2:$W$13,2,FALSE) ->  | O108: =DATE(N108,A108,B108) ->  | Y108: 未確定勘定 | AA108: 現金 | AC108: =IF(ISERROR(VLOOKUP(AA108,勘定科目消費税区分テーブル!$B$9:$C$150,2,FALSE)),"",VLOOKUP(AA108,勘定科目消費税区分テーブル!$B$9:$C$150,2,FALSE)) -> 対象外 | AD108: 未確定勘定 | AF108: =IF(ISERROR(VLOOKUP(AD108,勘定科目消費税区分テーブル!$B$9:$C$150,2,FALSE)),"",VLOOKUP(AD108,勘定科目消費税区分テーブル!$B$9:$C$150,2,FALSE)) -> 対象外 | AG108: 0
E109: =C109&D109 ->  | J109: =IF(A109="","",J108+H109-I109) ->  | N109: =VLOOKUP(A109,$V$2:$W$13,2,FALSE) ->  | O109: =DATE(N109,A109,B109) ->  | Y109: 未確定勘定 | AA109: 現金 | AC109: =IF(ISERROR(VLOOKUP(AA109,勘定科目消費税区分テーブル!$B$9:$C$150,2,FALSE)),"",VLOOKUP(AA109,勘定科目消費税区分テーブル!$B$9:$C$150,2,FALSE)) -> 対象外 | AD109: 未確定勘定 | AF109: =IF(ISERROR(VLOOKUP(AD109,勘定科目消費税区分テーブル!$B$9:$C$150,2,FALSE)),"",VLOOKUP(AD109,勘定科目消費税区分テーブル!$B$9:$C$150,2,FALSE)) -> 対象外 | AG109: 0
E110: =C110&D110 ->  | J110: =IF(A110="","",J109+H110-I110) ->  | N110: =VLOOKUP(A110,$V$2:$W$13,2,FALSE) ->  | O110: =DATE(N110,A110,B110) ->  | Y110: 未確定勘定 | AA110: 現金 | AC110: =IF(ISERROR(VLOOKUP(AA110,勘定科目消費税区分テーブル!$B$9:$C$150,2,FALSE)),"",VLOOKUP(AA110,勘定科目消費税区分テーブル!$B$9:$C$150,2,FALSE)) -> 対象外 | AD110: 未確定勘定 | AF110: =IF(ISERROR(VLOOKUP(AD110,勘定科目消費税区分テーブル!$B$9:$C$150,2,FALSE)),"",VLOOKUP(AD110,勘定科目消費税区分テーブル!$B$9:$C$150,2,FALSE)) -> 対象外 | AG110: 0

Sheet 取引先テーブル
B8: 取引先名 | C8: 取引内容 | E8: 勘定科目 | F8: 補助科目
B9: JR | D9: =B9&C9 -> JR | E9: 旅費交通費
B10: 一木運送 | D10: 一木運送 | E10: 荷造運賃
B11: 今津文具店 | C11: 事務用品 | D11: 今津文具店事務用品 | E11: 事務用品費
B12: クロネコ運輸 | D12: クロネコ運輸 | E12: 荷造運賃
B13: 今野デザイン | C13: ホームページ管理 | D13: 今野デザインホームページ管理 | E13: 広告宣伝費
B14: 坂本飯店 | C14: 接待飲食 | D14: 坂本飯店接待飲食 | E14: 交際費
B15: セブンマート | D15: セブンマート | E15: 消耗品費
B16: 武田商店 | D16: 武田商店 | E16: 買掛金 | F16: 武田商店
B17: 東灘信用金庫 | C17: 預金より入金 | D17: 東灘信用金庫預金より入金 | E17: 普通預金 | F17: 東灘信金／御影
B18: 郵便局 | D18: 郵便局 | E18: 通信費
D41: =B41&C41 -> 
D73: =B73&C73 -> 
D105: =B105&C105 -> 
D137: =B137&C137 -> 

Sheet 勘定科目消費税区分テーブル
B8: 勘定科目 | C8: 税区分 | F8: ※消費税税区分一覧
B9: 現金 | C9: 対象外 | F9: 取引の種類 | G9: 税区分名
B10: 当座預金 | C10: 対象外 | F10: 消費税と無関係な取引（不課税取引） | G10: 対象外
B11: 普通預金 | C11: 対象外 | F11: 課税売上※ | G11: 課税売上
B12: 定期預金 | C12: 対象外 | G12: 課税売上10%
B13: 定期積金 | C13: 対象外 | G13: 課税売上8%（軽）
B14: 郵便貯金 | C14: 対象外 | G14: 課税売上8%
B15: 受取手形 | C15: 対象外 | G15: 課税売上5%
B16: 売掛金 | C16: 対象外 | F16: 課税売上にかかわる対価の返還※ | G16: 課税売返
B17: 有価証券 | C17: 対象外 | G17: 課税売返10%
B18: 前渡金 | C18: 対象外 | G18: 課税売返8%（軽）
B19: 立替金 | C19: 対象外 | G19: 課税売返8%
B20: 前払費用 | C20: 対象外 | G20: 課税売返5%
B21: 未収収益 | C21: 対象外 | F21: 課税売上にかかわる対価の貸倒※ | G21: 課税売倒
B22: 短期貸付金 | C22: 対象外 | G22: 課税売倒10%
B23: 未収入金 | C23: 対象外 | G23: 課税売倒8%（軽）
B24: 仮払金 | C24: 対象外 | G24: 課税売倒8%
B25: 預け金 | C25: 対象外 | G25: 課税売倒5%
B26: 建物 | C26: 課対仕入10% | F26: 課税売上にかかわる貸倒分の回収※ | G26: 課税売回
B27: 附属設備 | C27: 課対仕入10% | G27: 課税売回10%
B28: 構築物 | C28: 課対仕入10% | G28: 課税売回8%（軽）
B29: 機械装置 | C29: 課対仕入10% | G29: 課税売回8%
B30: 車両運搬具 | C30: 課対仕入10% | G30: 課税売回5%
B31: 工具器具備品 | C31: 課対仕入10% | F31: 輸出免税売上 | G31: 輸出売上
B32: 土地 | C32: 対象外 | F32: 輸出免税売上にかかわる対価の返還 | G32: 輸出売返
B33: 建設仮勘定 | C33: 対象外 | F33: 輸出免税売上にかかわる貸倒 | G33: 輸出売倒
B34: ソフトウェア | C34: 課対仕入10% | F34: 非課税売上 | G34: 非課売上
B35: 投資有価証券 | C35: 対象外 | F35: 非課税売上にかかわる対価の返還 | G35: 非課売返
B36: 出資金 | C36: 対象外 | F36: 非課税売上にかかわる貸倒 | G36: 非課売倒
B37: 敷金 | C37: 対象外 | F37: 非課税資産の輸出等 | G37: 非資輸出
B38: 差入保証金 | C38: 対象外 | F38: 非課税資産の輸出等にかかわる対価の返還 | G38: 非資輸返
B39: 長期貸付金 | C39: 対象外 | F39: 非課税資産の輸出等にかかわる貸倒 | G39: 非資輸倒
B40: 長期前払費用 | C40: 対象外 | F40: 消費税と無関係な売上（不課税取引） | G40: 対外売上
B41: 預託金 | C41: 対象外 | F41: 有価証券の譲渡 | G41: 有価譲渡
B42: 支払手形 | C42: 対象外 | F42: 課税仕入※ | G42: 課対仕入
B43: 買掛金 | C43: 対象外 | G43: 課対仕入10%
B44: 短期借入金 | C44: 対象外 | G44: 課対仕入8%（軽）
B45: 未払金 | C45: 対象外 | G45: 課対仕入8%
B46: 未払費用 | C46: 対象外 | G46: 課対仕入5%
B47: 未払法人税等 | C47: 対象外 | F47: 課税仕入にかかわる対価の返還※ | G47: 課対仕返
B48: 未払消費税等 | C48: 対象外 | G48: 課対仕返10%
B49: 前受金 | C49: 対象外 | G49: 課対仕返8%（軽）
B50: 預り金 | C50: 対象外 | G50: 課対仕返8%
B51: 前受収益 | C51: 対象外 | G51: 課対仕返5%
B52: 仮受金 | C52: 対象外 | F52: 非課税売上に対応する課税仕入※ | G52: 非対仕入
B53: 預り保証金 | C53: 対象外 | G53: 非対仕入10%
B54: 長期借入金 | C54: 対象外 | G54: 非対仕入8%（軽）
B55: 長期未払金 | C55: 対象外 | G55: 非対仕入8%
B56: 売上高 | C56: 課税売上10% | G56: 非対仕入5%
B57: 仕入高 | C57: 課対仕入10% | F57: 非課税売上に対応する課税仕入の対価の返還※ | G57: 非対仕返
B58: 役員報酬 | C58: 対象外 | G58: 非対仕返10%
B59: 役員賞与 | C59: 対象外 | G59: 非対仕返8%（軽）
B60: 給料手当 | C60: 対象外 | G60: 非対仕返8%
B61: 雑給 | C61: 対象外 | G61: 非対仕返5%
B62: 賞与 | C62: 対象外 | F62: 課税・非課税売上に共通対応する課税仕入※ | G62: 共対仕入
B63: 退職金 | C63: 対象外 | G63: 共対仕入10%
B64: 法定福利費 | C64: 対象外 | G64: 共対仕入8%（軽）
B65: 福利厚生費 | C65: 課対仕入10% | G65: 共対仕入8%
B66: 採用教育費 | C66: 課対仕入10% | G66: 共対仕入5%
B67: 外注費 | C67: 課対仕入10% | F67: 課税・非課税売上に共通対応する課税仕入の対価の返還※ | G67: 共対仕返
B68: 荷造運賃 | C68: 課対仕入10% | G68: 共対仕返10%
B69: 広告宣伝費 | C69: 課対仕入10% | G69: 共対仕返8%（軽）
B70: 交際費 | C70: 課対仕入10% | G70: 共対仕返8%
B71: 会議費 | C71: 課対仕入10% | G71: 共対仕返5%
B72: 旅費交通費 | C72: 課対仕入10% | F72: 課税売上に対応する課税貨物※ | G72: 課対輸本
B73: 通信費 | C73: 課対仕入10% | G73: 課対輸本7.8%
B74: 販売手数料 | C74: 課対仕入10% | G74: 課対輸本6.24%（軽）
B75: 販売促進費 | C75: 課対仕入10% | G75: 課対輸本6.3%
B76: 消耗品費 | C76: 課対仕入10% | G76: 課対輸本4%
B77: 事務用品費 | C77: 課対仕入10% | F77: 非課税売上に対応する課税貨物※ | G77: 非対輸本
B78: 修繕費 | C78: 課対仕入10% | G78: 非対輸本7.8%
B79: 水道光熱費 | C79: 課対仕入10% | G79: 非対輸本6.24%（軽）
B80: 新聞図書費 | C80: 課対仕入10% | G80: 非対輸本6.3%
B81: 諸会費 | C81: 対象外 | G81: 非対輸本4%
B82: 支払手数料 | C82: 課対仕入10% | F82: 課税・非課税に共通対応する課税貨物※ | G82: 共対輸本
B83: 車両費 | C83: 課対仕入10% | G83: 共対輸本7.8%
B84: 地代家賃 | C84: 課対仕入10% | G84: 共対輸本6.24%（軽）
B85: 賃借料 | C85: 課対仕入10% | G85: 共対輸本6.3%
B86: リース料 | C86: 課対仕入10% | G86: 共対輸本4%
B87: 保険料 | C87: 対象外 | F87: 課税貨物の消費税※ | G87: 課対輸税
B88: 租税公課 | C88: 対象外 | G88: 課対輸税7.8%
B89: 支払報酬料 | C89: 課対仕入10% | G89: 課対輸税6.24%（軽）
B90: 寄付金 | C90: 対象外 | G90: 課対輸税6.3%
B91: 研究開発費 | C91: 課対仕入10% | G91: 課対輸税4%
B92: 雑費 | C92: 課対仕入10% | F92: 非課税貨物の消費税※ | G92: 非対輸税
B93: 受取利息 | C93: 非課売上 | G93: 非対輸税7.8%
B94: 受取配当金 | C94: 対象外 | G94: 非対輸税6.24%（軽）
B95: 雑収入 | C95: 対象外 | G95: 非対輸税6.3%
B96: 支払利息 | C96: 対象外 | G96: 非対輸税4%
B97: 割引料 | C97: 対象外 | F97: 課税・非課税に共通対応する課税貨物の消費税※ | G97: 共対輸税
B98: 手形売却損 | C98: 対象外 | G98: 共対輸税7.8%
B99: 貸倒損失(外) | C99: 課税売倒10% | G99: 共対輸税6.24%（軽）
B100: 売上割引 | C100: 課税売返10% | G100: 共対輸税6.3%
B101: 雑損失 | C101: 課対仕入10% | G101: 共対輸税4%
B102: 法人税、住民税及び事業税 | C102: 対象外 | F102: 地方消費税貨物割※ | G102: 地消貨割
B103: 法人税等 | C103: 対象外 | G103: 地消貨割2.2%
B104: [製]材料仕入高 | C104: 課対仕入10% | G104: 地消貨割1.76%（軽）
B105: [製]役員報酬 | C105: 対象外 | G105: 地消貨割1.7%
B106: [製]給料手当 | C106: 対象外 | G106: 地消貨割1%
B107: [製]雑給 | C107: 対象外 | F107: 非課税仕入 | G107: 非課仕入
B108: [製]賞与 | C108: 対象外 | F108: 消費税と無関係な仕入（不課税取引） | G108: 対外仕入
B109: [製]退職金 | C109: 対象外 | F109: 税区分が不明な取引 | G109: 不明
B110: [製]法定福利費 | C110: 対象外
B111: [製]福利厚生費 | C111: 課対仕入10%
B112: [製]外注加工費 | C112: 課対仕入10%
B113: [製]動力費 | C113: 課対仕入10%
B114: [製]荷造運賃 | C114: 課対仕入10%
B115: [製]会議費 | C115: 課対仕入10%
B116: [製]旅費交通費 | C116: 課対仕入10%
B117: [製]通信費 | C117: 課対仕入10%
B118: [製]消耗品費 | C118: 課対仕入10%
B119: [製]事務用品費 | C119: 課対仕入10%
B120: [製]消耗工具費 | C120: 課対仕入10%
B121: [製]車両費 | C121: 課対仕入10%
B122: [製]修繕費 | C122: 課対仕入10%
B123: [製]水道光熱費 | C123: 課対仕入10%
B124: [製]新聞図書費 | C124: 課対仕入10%
B125: [製]諸会費 | C125: 対象外
B126: [製]地代家賃 | C126: 課対仕入10%
B127: [製]賃借料 | C127: 課対仕入10%
B128: [製]租税公課 | C128: 対象外
B129: [製]保険料 | C129: 対象外
B130: [製]支払報酬料 | C130: 課対仕入10%
B131: [製]寄付金 | C131: 対象外
B132: [製]研究開発費 | C132: 課対仕入10%
B133: [製]保管料 | C133: 課対仕入10%
B134: [製]特許使用料 | C134: 課対仕入10%
B135: [製]雑費 | C135: 課対仕入10%
B150: 未確定勘定 | C150: 対象外

Sheet データ基礎
A1: 1 | B1: 2 | C1: 3 | D1: 1900-01-04 | E1: 5 | F1: 6 | G1: 7 | H1: 8 | I1: 9 | J1: 10 | K1: 11 | L1: 12 | M1: 13 | N1: 14 | O1: 15 | P1: 16 | Q1: 17 | R1: 18 | S1: 19 | T1: 20 | U1: 21 | V1: 22 | W1: 23 | X1: 24 | Y1: 25 | Z1: 日付
A2: 2000 | D2: 2016/04/01 | E2: 広告宣伝費 | H2: 課対仕入込8% | I2: 10500 | K2: 現金 | N2: 対象外 | O2: 10500 | Q2: 今野デザイン ホームページ管理 | T2: 0 | Y2: no | Z2: =DATEVALUE(D2) -> 42461
A3: 2000 | D3: 2016/04/23 | E3: 交際費 | H3: 課対仕入込8% | I3: 5000 | K3: 現金 | N3: 対象外 | O3: 5000 | Q3: 坂本飯店 接待飲食 | T3: 0 | Y3: no | Z3: =DATEVALUE(D3) -> 42483
A4: 2000 | D4: 2016/04/30 | E4: 旅費交通費 | H4: 課対仕入込8% | I4: 3000 | K4: 現金 | N4: 対象外 | O4: 3000 | Q4: JR | T4: 0 | Y4: no | Z4: 42490
A5: 2000 | D5: 2016/05/01 | E5: 交際費 | H5: 課対仕入込8% | I5: 10800 | K5: 現金 | N5: 対象外 | O5: 10800 | Q5: 坂本飯店 接待飲食 | T5: 0 | Y5: no | Z5: 42491
A6: 2000 | D6: 2016/05/11 | E6: 交際費 | H6: 課対仕入込8% | I6: 24000 | K6: 現金 | N6: 対象外 | O6: 24000 | Q6: 坂本飯店 接待飲食 | T6: 0 | Y6: no | Z6: 42501
A7: 2000 | D7: 2016/05/20 | E7: 現金 | H7: 対象外 | I7: 124566 | K7: 普通預金 | L7: 東灘信金／御影 | N7: 対象外 | O7: 124566 | Q7: 東灘信用金庫 預金より入金 | T7: 0 | Y7: no | Z7: 42510
A8: 2000 | D8: 2016/06/10 | E8: 荷造運賃 | H8: 課対仕入込8% | I8: 1020 | K8: 現金 | N8: 対象外 | O8: 1020 | Q8: クロネコ運輸 | T8: 0 | Y8: no | Z8: 42531
A9: 2000 | D9: 2016/06/20 | E9: 現金 | H9: 対象外 | I9: 80000 | K9: 普通預金 | N9: 対象外 | O9: 80000 | Q9: 東灘信用金庫 預金より入金 | T9: 0 | Y9: no | Z9: 42541
A10: 2000 | D10: 2016/07/01 | E10: 買掛金 | F10: 武田商店 | H10: 対象外 | I10: 30000 | K10: 現金 | N10: 対象外 | O10: 30000 | Q10: 武田商店 | T10: 0 | Y10: no | Z10: 42552
A11: 2000 | D11: 2016/07/25 | E11: 旅費交通費 | H11: 課対仕入込8% | I11: 1080 | K11: 現金 | N11: 対象外 | O11: 1080 | Q11: 御影タクシー | T11: 0 | Y11: no | Z11: 42576
A12: 2000 | D12: 2016/08/01 | E12: 旅費交通費 | H12: 課対仕入込8% | I12: 5000 | K12: 現金 | N12: 対象外 | O12: 5000 | Q12: JR | T12: 0 | Y12: no | Z12: 42583
A13: 2000 | D13: 2016/08/23 | E13: 荷造運賃 | H13: 課対仕入込8% | I13: 540 | K13: 現金 | N13: 対象外 | O13: 540 | Q13: クロネコ運輸 | T13: 0 | Y13: no | Z13: 42605
A14: 2000 | D14: 2016/09/20 | E14: 広告宣伝費 | H14: 課対仕入込8% | I14: 30000 | K14: 現金 | N14: 対象外 | O14: 30000 | Q14: 今野デザイン ホームページ管理 | T14: 0 | Y14: no | Z14: 42633
A15: 2000 | D15: 2016/09/21 | E15: 交際費 | H15: 課対仕入込8% | I15: 4000 | K15: 現金 | N15: 対象外 | O15: 4000 | Q15: 坂本飯店 接待飲食 | T15: 0 | Y15: no | Z15: 42634
A16: 2000 | D16: 2016/10/20 | E16: 現金 | H16: 対象外 | I16: 24560 | K16: 普通預金 | L16: 東灘信金／御影 | N16: 対象外 | O16: 24560 | Q16: 東灘信用金庫 預金より入金 | T16: 0 | Y16: no | Z16: 42663
A17: 2000 | D17: 2016/11/11 | E17: 荷造運賃 | H17: 課対仕入込8% | I17: 940 | K17: 現金 | N17: 対象外 | O17: 940 | Q17: クロネコ運輸 | T17: 0 | Y17: no | Z17: 42685
A18: 2000 | D18: 2016/11/12 | E18: 交際費 | H18: 課対仕入込8% | I18: 5400 | K18: 現金 | N18: 対象外 | O18: 5400 | Q18: 坂本飯店 接待飲食 | T18: 0 | Y18: no | Z18: 42686
A19: 2000 | D19: 2016/11/12 | E19: 荷造運賃 | H19: 課対仕入込8% | I19: 5400 | K19: 現金 | N19: 対象外 | O19: 5400 | Q19: 一木運送 | T19: 0 | Y19: no | Z19: 42686
A20: 2000 | D20: 2016/12/11 | E20: 事務用品費 | H20: 課対仕入込8% | I20: 500 | K20: 現金 | N20: 対象外 | O20: 500 | Q20: 今津文具店 事務用品 | T20: 0 | Y20: no | Z20: 42715
A21: 2000 | D21: 2016/12/28 | E21: 旅費交通費 | H21: 課対仕入込8% | I21: 525 | K21: 現金 | N21: 対象外 | O21: 525 | Q21: JR | T21: 0 | Y21: no | Z21: 42732
A22: 2000 | D22: 2016/12/31 | E22: 荷造運賃 | H22: 課対仕入込8% | I22: 5400 | K22: 現金 | N22: 対象外 | O22: 5400 | Q22: 一木運送 | T22: 0 | Y22: no | Z22: 42735

Sheet 絞込みデータ
A1: 1 | B1: 2 | C1: 3 | D1: 1900-01-04 | E1: 5 | F1: 6 | G1: 7 | H1: 8 | I1: 9 | J1: 10 | K1: 11 | L1: 12 | M1: 13 | N1: 14 | O1: 15 | P1: 16 | Q1: 17 | R1: 18 | S1: 19 | T1: 20 | U1: 21 | V1: 22 | W1: 23 | X1: 24 | Y1: 25 | Z1: 日付
A2: 2000 | D2: 2016/04/01 | E2: 広告宣伝費 | H2: 課対仕入込8% | I2: 10500 | K2: 現金 | N2: 対象外 | O2: 10500 | Q2: 今野デザイン ホームページ管理 | T2: 0 | Y2: no | Z2: 42461
A3: 2000 | D3: 2016/04/23 | E3: 交際費 | H3: 課対仕入込8% | I3: 5000 | K3: 現金 | N3: 対象外 | O3: 5000 | Q3: 坂本飯店 接待飲食 | T3: 0 | Y3: no | Z3: 42483
A4: 2000 | D4: 2016/04/30 | E4: 旅費交通費 | H4: 課対仕入込8% | I4: 3000 | K4: 現金 | N4: 対象外 | O4: 3000 | Q4: JR | T4: 0 | Y4: no | Z4: 42490
A5: 2000 | D5: 2016/05/01 | E5: 交際費 | H5: 課対仕入込8% | I5: 10800 | K5: 現金 | N5: 対象外 | O5: 10800 | Q5: 坂本飯店 接待飲食 | T5: 0 | Y5: no | Z5: 42491
A6: 2000 | D6: 2016/05/11 | E6: 交際費 | H6: 課対仕入込8% | I6: 24000 | K6: 現金 | N6: 対象外 | O6: 24000 | Q6: 坂本飯店 接待飲食 | T6: 0 | Y6: no | Z6: 42501
A7: 2000 | D7: 2016/05/20 | E7: 現金 | H7: 対象外 | I7: 124566 | K7: 普通預金 | L7: 東灘信金／御影 | N7: 対象外 | O7: 124566 | Q7: 東灘信用金庫 預金より入金 | T7: 0 | Y7: no | Z7: 42510
A8: 2000 | D8: 2016/06/10 | E8: 荷造運賃 | H8: 課対仕入込8% | I8: 1020 | K8: 現金 | N8: 対象外 | O8: 1020 | Q8: クロネコ運輸 | T8: 0 | Y8: no | Z8: 42531
A9: 2000 | D9: 2016/06/20 | E9: 現金 | H9: 対象外 | I9: 80000 | K9: 普通預金 | N9: 対象外 | O9: 80000 | Q9: 東灘信用金庫 預金より入金 | T9: 0 | Y9: no | Z9: 42541
A10: 2000 | D10: 2016/07/01 | E10: 買掛金 | F10: 武田商店 | H10: 対象外 | I10: 30000 | K10: 現金 | N10: 対象外 | O10: 30000 | Q10: 武田商店 | T10: 0 | Y10: no | Z10: 42552
A11: 2000 | D11: 2016/07/25 | E11: 旅費交通費 | H11: 課対仕入込8% | I11: 1080 | K11: 現金 | N11: 対象外 | O11: 1080 | Q11: 御影タクシー | T11: 0 | Y11: no | Z11: 42576
A12: 2000 | D12: 2016/08/01 | E12: 旅費交通費 | H12: 課対仕入込8% | I12: 5000 | K12: 現金 | N12: 対象外 | O12: 5000 | Q12: JR | T12: 0 | Y12: no | Z12: 42583
A13: 2000 | D13: 2016/08/23 | E13: 荷造運賃 | H13: 課対仕入込8% | I13: 540 | K13: 現金 | N13: 対象外 | O13: 540 | Q13: クロネコ運輸 | T13: 0 | Y13: no | Z13: 42605
A14: 2000 | D14: 2016/09/20 | E14: 広告宣伝費 | H14: 課対仕入込8% | I14: 30000 | K14: 現金 | N14: 対象外 | O14: 30000 | Q14: 今野デザイン ホームページ管理 | T14: 0 | Y14: no | Z14: 42633
A15: 2000 | D15: 2016/09/21 | E15: 交際費 | H15: 課対仕入込8% | I15: 4000 | K15: 現金 | N15: 対象外 | O15: 4000 | Q15: 坂本飯店 接待飲食 | T15: 0 | Y15: no | Z15: 42634
A16: 2000 | D16: 2016/10/20 | E16: 現金 | H16: 対象外 | I16: 24560 | K16: 普通預金 | L16: 東灘信金／御影 | N16: 対象外 | O16: 24560 | Q16: 東灘信用金庫 預金より入金 | T16: 0 | Y16: no | Z16: 42663
A17: 2000 | D17: 2016/11/11 | E17: 荷造運賃 | H17: 課対仕入込8% | I17: 940 | K17: 現金 | N17: 対象外 | O17: 940 | Q17: クロネコ運輸 | T17: 0 | Y17: no | Z17: 42685
A18: 2000 | D18: 2016/11/12 | E18: 交際費 | H18: 課対仕入込8% | I18: 5400 | K18: 現金 | N18: 対象外 | O18: 5400 | Q18: 坂本飯店 接待飲食 | T18: 0 | Y18: no | Z18: 42686
A19: 2000 | D19: 2016/11/12 | E19: 荷造運賃 | H19: 課対仕入込8% | I19: 5400 | K19: 現金 | N19: 対象外 | O19: 5400 | Q19: 一木運送 | T19: 0 | Y19: no | Z19: 42686
A20: 2000 | D20: 2016/12/11 | E20: 事務用品費 | H20: 課対仕入込8% | I20: 500 | K20: 現金 | N20: 対象外 | O20: 500 | Q20: 今津文具店 事務用品 | T20: 0 | Y20: no | Z20: 42715
A21: 2000 | D21: 2016/12/28 | E21: 旅費交通費 | H21: 課対仕入込8% | I21: 525 | K21: 現金 | N21: 対象外 | O21: 525 | Q21: JR | T21: 0 | Y21: no | Z21: 42732
A22: 2000 | D22: 2016/12/31 | E22: 荷造運賃 | H22: 課対仕入込8% | I22: 5400 | K22: 現金 | N22: 対象外 | O22: 5400 | Q22: 一木運送 | T22: 0 | Y22: no | Z22: 42735

Sheet 弥生インポート形式仕訳日記帳
A1: 2000 | D1: 2016/04/01 | E1: 広告宣伝費 | H1: 課対仕入込8% | I1: 10500 | K1: 現金 | N1: 対象外 | O1: 10500 | Q1: 今野デザイン ホームページ管理 | T1: 0 | Y1: no
A2: 2000 | D2: 2016/04/23 | E2: 交際費 | H2: 課対仕入込8% | I2: 5000 | K2: 現金 | N2: 対象外 | O2: 5000 | Q2: 坂本飯店 接待飲食 | T2: 0 | Y2: no
A3: 2000 | D3: 2016/04/30 | E3: 旅費交通費 | H3: 課対仕入込8% | I3: 3000 | K3: 現金 | N3: 対象外 | O3: 3000 | Q3: JR | T3: 0 | Y3: no
A4: 2000 | D4: 2016/05/01 | E4: 交際費 | H4: 課対仕入込8% | I4: 10800 | K4: 現金 | N4: 対象外 | O4: 10800 | Q4: 坂本飯店 接待飲食 | T4: 0 | Y4: no
A5: 2000 | D5: 2016/05/11 | E5: 交際費 | H5: 課対仕入込8% | I5: 24000 | K5: 現金 | N5: 対象外 | O5: 24000 | Q5: 坂本飯店 接待飲食 | T5: 0 | Y5: no
A6: 2000 | D6: 2016/05/20 | E6: 現金 | H6: 対象外 | I6: 124566 | K6: 普通預金 | L6: 東灘信金／御影 | N6: 対象外 | O6: 124566 | Q6: 東灘信用金庫 預金より入金 | T6: 0 | Y6: no
A7: 2000 | D7: 2016/06/10 | E7: 荷造運賃 | H7: 課対仕入込8% | I7: 1020 | K7: 現金 | N7: 対象外 | O7: 1020 | Q7: クロネコ運輸 | T7: 0 | Y7: no
A8: 2000 | D8: 2016/06/20 | E8: 現金 | H8: 対象外 | I8: 80000 | K8: 普通預金 | N8: 対象外 | O8: 80000 | Q8: 東灘信用金庫 預金より入金 | T8: 0 | Y8: no
A9: 2000 | D9: 2016/07/01 | E9: 買掛金 | F9: 武田商店 | H9: 対象外 | I9: 30000 | K9: 現金 | N9: 対象外 | O9: 30000 | Q9: 武田商店 | T9: 0 | Y9: no
A10: 2000 | D10: 2016/07/25 | E10: 旅費交通費 | H10: 課対仕入込8% | I10: 1080 | K10: 現金 | N10: 対象外 | O10: 1080 | Q10: 御影タクシー | T10: 0 | Y10: no
A11: 2000 | D11: 2016/08/01 | E11: 旅費交通費 | H11: 課対仕入込8% | I11: 5000 | K11: 現金 | N11: 対象外 | O11: 5000 | Q11: JR | T11: 0 | Y11: no
A12: 2000 | D12: 2016/08/23 | E12: 荷造運賃 | H12: 課対仕入込8% | I12: 540 | K12: 現金 | N12: 対象外 | O12: 540 | Q12: クロネコ運輸 | T12: 0 | Y12: no
A13: 2000 | D13: 2016/09/20 | E13: 広告宣伝費 | H13: 課対仕入込8% | I13: 30000 | K13: 現金 | N13: 対象外 | O13: 30000 | Q13: 今野デザイン ホームページ管理 | T13: 0 | Y13: no
A14: 2000 | D14: 2016/09/21 | E14: 交際費 | H14: 課対仕入込8% | I14: 4000 | K14: 現金 | N14: 対象外 | O14: 4000 | Q14: 坂本飯店 接待飲食 | T14: 0 | Y14: no
A15: 2000 | D15: 2016/10/20 | E15: 現金 | H15: 対象外 | I15: 24560 | K15: 普通預金 | L15: 東灘信金／御影 | N15: 対象外 | O15: 24560 | Q15: 東灘信用金庫 預金より入金 | T15: 0 | Y15: no
A16: 2000 | D16: 2016/11/11 | E16: 荷造運賃 | H16: 課対仕入込8% | I16: 940 | K16: 現金 | N16: 対象外 | O16: 940 | Q16: クロネコ運輸 | T16: 0 | Y16: no
A17: 2000 | D17: 2016/11/12 | E17: 交際費 | H17: 課対仕入込8% | I17: 5400 | K17: 現金 | N17: 対象外 | O17: 5400 | Q17: 坂本飯店 接待飲食 | T17: 0 | Y17: no
A18: 2000 | D18: 2016/11/12 | E18: 荷造運賃 | H18: 課対仕入込8% | I18: 5400 | K18: 現金 | N18: 対象外 | O18: 5400 | Q18: 一木運送 | T18: 0 | Y18: no
A19: 2000 | D19: 2016/12/11 | E19: 事務用品費 | H19: 課対仕入込8% | I19: 500 | K19: 現金 | N19: 対象外 | O19: 500 | Q19: 今津文具店 事務用品 | T19: 0 | Y19: no
A20: 2000 | D20: 2016/12/28 | E20: 旅費交通費 | H20: 課対仕入込8% | I20: 525 | K20: 現金 | N20: 対象外 | O20: 525 | Q20: JR | T20: 0 | Y20: no
A21: 2000 | D21: 2016/12/31 | E21: 荷造運賃 | H21: 課対仕入込8% | I21: 5400 | K21: 現金 | N21: 対象外 | O21: 5400 | Q21: 一木運送 | T21: 0 | Y21: no
